Workbook

Sheet Front Sheet
F7: LCN Fund Second Tier Full Submission
F8: Spreadsheet
F10: (version 2.0)
F11: Appendix A
C15: DNO Name:
C17: Submission Date:
B21: Input cells
B22: Totals cells (of formula within worksheet)
B23: Referencing to other worksheets
B24: Check cells
B25: No Input
B26: Descriptions and pack data
B27: Ofgem Input cells

Sheet Second Tier Funding Request
A1: Second Tier Funding Request
C2: 2014/15 | D2: 2015/16 | E2: 2016/17 | F2: 2017/18 | G2: 2018/19 | H2: 2019/20 | I2: Total
A3: Total Project Cost | B3: From Project Cost Summary sheet
B4: Labour | C4: ='Project Cost Summary'!C18 -> 0 | D4: ='Project Cost Summary'!C31 -> 0 | E4: ='Project Cost Summary'!C44 -> 0 | F4: ='Project Cost Summary'!C57 -> 0 | G4: ='Project Cost Summary'!C70 -> 0 | H4: ='Project Cost Summary'!C83 -> 0 | I4: =SUM(C4:H4) -> 0
B5: Equipment | C5: ='Project Cost Summary'!D18 -> 0 | D5: ='Project Cost Summary'!D31 -> 0 | E5: ='Project Cost Summary'!D44 -> 0 | F5: ='Project Cost Summary'!D57 -> 0 | G5: ='Project Cost Summary'!D70 -> 0 | H5: ='Project Cost Summary'!D83 -> 0 | I5: =SUM(C5:H5) -> 0
B6: Contractors | C6: ='Project Cost Summary'!E18 -> 0 | D6: ='Project Cost Summary'!E31 -> 0 | E6: ='Project Cost Summary'!E44 -> 0 | F6: ='Project Cost Summary'!E57 -> 0 | G6: ='Project Cost Summary'!E70 -> 0 | H6: ='Project Cost Summary'!E83 -> 0 | I6: 0
B7: IT | C7: ='Project Cost Summary'!F18 -> 0 | D7: ='Project Cost Summary'!F31 -> 0 | E7: ='Project Cost Summary'!F44 -> 0 | F7: ='Project Cost Summary'!F57 -> 0 | G7: ='Project Cost Summary'!F70 -> 0 | H7: ='Project Cost Summary'!F83 -> 0 | I7: 0
B8: IPR Costs | C8: ='Project Cost Summary'!G18 -> 0 | D8: ='Project Cost Summary'!G31 -> 0 | E8: ='Project Cost Summary'!G44 -> 0 | F8: ='Project Cost Summary'!G57 -> 0 | G8: ='Project Cost Summary'!G70 -> 0 | H8: ='Project Cost Summary'!G83 -> 0 | I8: 0
B9: Travel & Expenses | C9: ='Project Cost Summary'!H18 -> 0 | D9: ='Project Cost Summary'!H31 -> 0 | E9: ='Project Cost Summary'!H44 -> 0 | F9: ='Project Cost Summary'!H57 -> 0 | G9: ='Project Cost Summary'!H70 -> 0 | H9: ='Project Cost Summary'!H83 -> 0 | I9: 0
A10: Payments to users & Contigency | C10: ='Project Cost Summary'!I18+'Project Cost Summary'!J18 -> 0 | D10: ='Project Cost Summary'!I31+'Project Cost Summary'!J31 -> 0 | E10: ='Project Cost Summary'!I44+'Project Cost Summary'!J44 -> 0 | F10: ='Project Cost Summary'!I57+'Project Cost Summary'!J57 -> 0 | G10: ='Project Cost Summary'!I70+'Project Cost Summary'!J70 -> 0 | H10: ='Project Cost Summary'!J83+'Project Cost Summary'!K83 -> 0 | I10: 0
B11: Decommissioning | C11: ='Project Cost Summary'!K18 -> 0 | D11: ='Project Cost Summary'!K31 -> 0 | E11: ='Project Cost Summary'!K44 -> 0 | F11: ='Project Cost Summary'!K57 -> 0 | G11: ='Project Cost Summary'!K70 -> 0 | H11: ='Project Cost Summary'!K83 -> 0 | I11: 0
B12: Other | C12: ='Project Cost Summary'!L18 -> 0 | D12: ='Project Cost Summary'!L31 -> 0 | E12: ='Project Cost Summary'!L44 -> 0 | F12: ='Project Cost Summary'!L57 -> 0 | G12: ='Project Cost Summary'!L70 -> 0 | H12: ='Project Cost Summary'!L83 -> 0 | I12: 0
B13: Total | C13: =SUM(C4:C12) -> 0 | D13: 0 | E13: 0 | F13: 0 | G13: 0 | H13: 0 | I13: =SUM(C13:G13) -> 0
A15: External funding | B15: Any funding that will be received from Project Partners and/or External Funders - from Project Cost Summary sheet
B16: Labour | C16: ='Project Cost Summary'!C22 -> 0 | D16: ='Project Cost Summary'!C35 -> 0 | E16: ='Project Cost Summary'!C48 -> 0 | F16: ='Project Cost Summary'!C61 -> 0 | G16: ='Project Cost Summary'!C74 -> 0 | H16: ='Project Cost Summary'!C87 -> 0 | I16: =SUM(C16:H16) -> 0
B17: Equipment | C17: ='Project Cost Summary'!D22 -> 0 | D17: ='Project Cost Summary'!D35 -> 0 | E17: ='Project Cost Summary'!D48 -> 0 | F17: ='Project Cost Summary'!D61 -> 0 | G17: ='Project Cost Summary'!D74 -> 0 | H17: ='Project Cost Summary'!D87 -> 0 | I17: =SUM(C17:H17) -> 0
B18: Contractors | C18: ='Project Cost Summary'!E22 -> 0 | D18: ='Project Cost Summary'!E35 -> 0 | E18: ='Project Cost Summary'!E48 -> 0 | F18: ='Project Cost Summary'!E61 -> 0 | G18: ='Project Cost Summary'!E74 -> 0 | H18: ='Project Cost Summary'!E87 -> 0 | I18: 0
B19: IT | C19: ='Project Cost Summary'!F22 -> 0 | D19: ='Project Cost Summary'!F35 -> 0 | E19: ='Project Cost Summary'!F48 -> 0 | F19: ='Project Cost Summary'!F61 -> 0 | G19: ='Project Cost Summary'!F74 -> 0 | H19: ='Project Cost Summary'!F87 -> 0 | I19: 0
B20: IPR Costs | C20: ='Project Cost Summary'!G22 -> 0 | D20: ='Project Cost Summary'!G35 -> 0 | E20: ='Project Cost Summary'!G48 -> 0 | F20: ='Project Cost Summary'!G61 -> 0 | G20: ='Project Cost Summary'!G74 -> 0 | H20: ='Project Cost Summary'!G87 -> 0 | I20: 0
B21: Travel & Expenses | C21: ='Project Cost Summary'!H22 -> 0 | D21: ='Project Cost Summary'!H35 -> 0 | E21: ='Project Cost Summary'!H48 -> 0 | F21: ='Project Cost Summary'!H61 -> 0 | G21: ='Project Cost Summary'!H74 -> 0 | H21: ='Project Cost Summary'!H87 -> 0 | I21: 0
A22: Payments to users & Contigency | C22: ='Project Cost Summary'!I22+'Project Cost Summary'!J22 -> 0 | D22: ='Project Cost Summary'!I35+'Project Cost Summary'!J35 -> 0 | E22: ='Project Cost Summary'!I48+'Project Cost Summary'!J48 -> 0 | F22: ='Project Cost Summary'!I61+'Project Cost Summary'!J61 -> 0 | G22: ='Project Cost Summary'!I74+'Project Cost Summary'!J74 -> 0 | H22: ='Project Cost Summary'!I87+'Project Cost Summary'!K87 -> 0 | I22: 0
B23: Decommissioning | C23: ='Project Cost Summary'!K22 -> 0 | D23: ='Project Cost Summary'!K35 -> 0 | E23: ='Project Cost Summary'!K48 -> 0 | F23: ='Project Cost Summary'!K61 -> 0 | G23: ='Project Cost Summary'!K74 -> 0 | H23: ='Project Cost Summary'!K87 -> 0 | I23: 0
B24: Other | C24: ='Project Cost Summary'!L22 -> 0 | D24: ='Project Cost Summary'!L35 -> 0 | E24: ='Project Cost Summary'!L48 -> 0 | F24: ='Project Cost Summary'!L61 -> 0 | G24: ='Project Cost Summary'!L74 -> 0 | H24: ='Project Cost Summary'!L87 -> 0 | I24: 0
B25: Total | C25: =SUM(C16:C24) -> 0 | D25: =SUM(D16:D24) -> 0 | E25: =SUM(E16:E24) -> 0 | F25: =SUM(F16:F24) -> 0 | G25: =SUM(G16:G24) -> 0 | I25: =SUM(C25:G25) -> 0
A27: DNO extra contribution | B27: Any funding from the DNO which is in excess of the DNO Compulsory Contribution - from Project Cost Summary sheet
B28: Labour | C28: ='Project Cost Summary'!C23 -> 0 | D28: ='Project Cost Summary'!C36 -> 0 | E28: ='Project Cost Summary'!C49 -> 0 | F28: ='Project Cost Summary'!C62 -> 0 | G28: ='Project Cost Summary'!C75 -> 0 | H28: ='Project Cost Summary'!C88 -> 0 | I28: =SUM(C28:H28) -> 0
B29: Equipment | C29: ='Project Cost Summary'!D23 -> 0 | D29: ='Project Cost Summary'!D36 -> 0 | E29: ='Project Cost Summary'!D49 -> 0 | F29: ='Project Cost Summary'!D62 -> 0 | G29: ='Project Cost Summary'!D75 -> 0 | H29: ='Project Cost Summary'!D88 -> 0 | I29: =SUM(C29:H29) -> 0
B30: Contractors | C30: ='Project Cost Summary'!E23 -> 0 | D30: ='Project Cost Summary'!E36 -> 0 | E30: ='Project Cost Summary'!E49 -> 0 | F30: ='Project Cost Summary'!E62 -> 0 | G30: ='Project Cost Summary'!E75 -> 0 | H30: ='Project Cost Summary'!E88 -> 0 | I30: 0
B31: IT | C31: ='Project Cost Summary'!F23 -> 0 | D31: ='Project Cost Summary'!F36 -> 0 | E31: ='Project Cost Summary'!F49 -> 0 | F31: ='Project Cost Summary'!F62 -> 0 | G31: ='Project Cost Summary'!F75 -> 0 | H31: ='Project Cost Summary'!E88 -> 0 | I31: 0
B32: IPR Costs | C32: ='Project Cost Summary'!G23 -> 0 | D32: ='Project Cost Summary'!G36 -> 0 | E32: ='Project Cost Summary'!G49 -> 0 | F32: ='Project Cost Summary'!G62 -> 0 | G32: ='Project Cost Summary'!G75 -> 0 | H32: ='Project Cost Summary'!F88 -> 0 | I32: 0
B33: Travel & Expenses | C33: ='Project Cost Summary'!H23 -> 0 | D33: ='Project Cost Summary'!H36 -> 0 | E33: ='Project Cost Summary'!H49 -> 0 | F33: ='Project Cost Summary'!H62 -> 0 | G33: ='Project Cost Summary'!H75 -> 0 | H33: ='Project Cost Summary'!G88 -> 0 | I33: 0
A34: Payments to users & Contigency | C34: ='Project Cost Summary'!I23+'Project Cost Summary'!J23 -> 0 | D34: ='Project Cost Summary'!I36+'Project Cost Summary'!J36 -> 0 | E34: ='Project Cost Summary'!I49+'Project Cost Summary'!J49 -> 0 | F34: ='Project Cost Summary'!I62+'Project Cost Summary'!J62 -> 0 | G34: ='Project Cost Summary'!I75 -> 0 | H34: ='Project Cost Summary'!I88+'Project Cost Summary'!J88 -> 0 | I34: 0
B35: Decommissioning | C35: ='Project Cost Summary'!K23 -> 0 | D35: ='Project Cost Summary'!K36 -> 0 | E35: ='Project Cost Summary'!K49 -> 0 | F35: ='Project Cost Summary'!K62 -> 0 | G35: ='Project Cost Summary'!K75 -> 0 | H35: ='Project Cost Summary'!K88 -> 0 | I35: 0
B36: Other | C36: ='Project Cost Summary'!L23 -> 0 | D36: ='Project Cost Summary'!L36 -> 0 | E36: ='Project Cost Summary'!L49 -> 0 | F36: ='Project Cost Summary'!L62 -> 0 | G36: ='Project Cost Summary'!L75 -> 0 | H36: ='Project Cost Summary'!L88 -> 0 | I36: 0
B37: Total | C37: =SUM(C28:C36) -> 0 | D37: 0 | E37: 0 | F37: 0 | G37: 0 | I37: 0
A39: Initial Net Funding Required | C39: calculated from the tables above
B40: Labour | C40: =C4-C16-C28 -> 0 | D40: 0 | E40: 0 | F40: 0 | G40: 0 | H40: =H4-H16-H28 -> 0 | I40: 0
B41: Equipment | C41: 0 | D41: 0 | E41: 0 | F41: 0 | G41: 0 | H41: 0 | I41: 0
B42: Contractors | C42: 0 | D42: 0 | E42: 0 | F42: 0 | G42: 0 | H42: 0 | I42: 0
B43: IT | C43: 0 | D43: 0 | E43: 0 | F43: 0 | G43: 0 | H43: 0 | I43: 0
B44: IPR Costs | C44: 0 | D44: 0 | E44: 0 | F44: 0 | G44: 0 | H44: 0 | I44: 0
B45: Travel & Expenses | C45: 0 | D45: 0 | E45: 0 | F45: 0 | G45: 0 | H45: 0 | I45: 0
A46: Payments to users & Contigency | C46: 0 | D46: 0 | E46: 0 | F46: 0 | G46: 0 | H46: 0 | I46: 0
B47: Decommissioning | C47: 0 | D47: 0 | E47: 0 | F47: 0 | G47: 0 | H47: 0 | I47: 0 | J47: Check Total = to Initial Net Funding request
B48: Other | C48: 0 | D48: 0 | E48: 0 | F48: 0 | G48: 0 | H48: 0 | I48: 0 | J48: in Project Cost Summary
B49: Total | C49: 0 | D49: 0 | E49: 0 | F49: 0 | G49: 0 | H49: 0 | I49: =I13-I25-I37 -> 0 | J49: =IF(I49='Project Cost Summary'!M11,"OK","ERROR") -> OK
A51: Direct Benefits | B51: from Direct Benefits sheet
B52: Total | C52: ='Direct Benefits'!C11 -> 0 | D52: ='Direct Benefits'!D11 -> 0 | E52: 0 | F52: 0 | G52: 0 | H52: 0 | I52: =SUM(C52:H52) -> 0
A56: DNO Compulsory Contribution / Direct Benefits | D56: from Project Cost Summary sheet
B57: Labour | C57: ='Project Cost Summary'!C25 -> 0 | D57: ='Project Cost Summary'!C38 -> 0 | E57: ='Project Cost Summary'!C51 -> 0 | F57: ='Project Cost Summary'!C64 -> 0 | G57: ='Project Cost Summary'!C77 -> 0 | H57: ='Project Cost Summary'!C90 -> 0 | I57: =SUM(C57:H57) -> 0
B58: Equipment | C58: ='Project Cost Summary'!D25 -> 0 | D58: ='Project Cost Summary'!D38 -> 0 | E58: ='Project Cost Summary'!D51 -> 0 | F58: ='Project Cost Summary'!D64 -> 0 | G58: ='Project Cost Summary'!D77 -> 0 | H58: ='Project Cost Summary'!D90 -> 0 | I58: =SUM(C58:H58) -> 0
B59: Contractors | C59: ='Project Cost Summary'!E25 -> 0 | D59: ='Project Cost Summary'!E38 -> 0 | E59: ='Project Cost Summary'!E51 -> 0 | F59: ='Project Cost Summary'!E64 -> 0 | G59: ='Project Cost Summary'!E77 -> 0 | H59: ='Project Cost Summary'!E90 -> 0 | I59: 0
B60: IT | C60: ='Project Cost Summary'!F25 -> 0 | D60: ='Project Cost Summary'!F38 -> 0 | E60: ='Project Cost Summary'!F51 -> 0 | F60: ='Project Cost Summary'!F64 -> 0 | G60: ='Project Cost Summary'!F77 -> 0 | H60: ='Project Cost Summary'!F90 -> 0 | I60: 0
B61: IPR Costs | C61: ='Project Cost Summary'!G25 -> 0 | D61: ='Project Cost Summary'!G38 -> 0 | E61: ='Project Cost Summary'!G51 -> 0 | F61: ='Project Cost Summary'!G64 -> 0 | G61: ='Project Cost Summary'!G77 -> 0 | H61: ='Project Cost Summary'!G90 -> 0 | I61: 0
B62: Travel & Expenses | C62: ='Project Cost Summary'!H25 -> 0 | D62: ='Project Cost Summary'!H38 -> 0 | E62: ='Project Cost Summary'!H51 -> 0 | F62: ='Project Cost Summary'!H64 -> 0 | G62: ='Project Cost Summary'!H77 -> 0 | H62: ='Project Cost Summary'!H90 -> 0 | I62: 0
A63: Payments to users & Contigency | C63: ='Project Cost Summary'!I25+'Project Cost Summary'!J25 -> 0 | D63: ='Project Cost Summary'!I38+'Project Cost Summary'!J38 -> 0 | E63: ='Project Cost Summary'!I51+'Project Cost Summary'!J51 -> 0 | F63: ='Project Cost Summary'!I64+'Project Cost Summary'!J64 -> 0 | G63: ='Project Cost Summary'!I77+'Project Cost Summary'!J77 -> 0 | H63: ='Project Cost Summary'!I90+'Project Cost Summary'!J90 -> 0 | I63: 0
B64: Decommissioning | C64: ='Project Cost Summary'!K25 -> 0 | D64: ='Project Cost Summary'!K38 -> 0 | E64: ='Project Cost Summary'!K51 -> 0 | F64: ='Project Cost Summary'!K64 -> 0 | G64: ='Project Cost Summary'!K77 -> 0 | H64: ='Project Cost Summary'!K90 -> 0 | I64: 0 | J64: of Total Initial Net Funding Required
B65: Other | C65: ='Project Cost Summary'!L25 -> 0 | D65: ='Project Cost Summary'!L38 -> 0 | E65: ='Project Cost Summary'!L51 -> 0 | F65: ='Project Cost Summary'!L64 -> 0 | G65: ='Project Cost Summary'!L77 -> 0 | H65: ='Project Cost Summary'!L90 -> 0 | I65: 0 | J65: =IF(I66>=I49*0.1,"OK","ERROR") -> OK
B66: Total | C66: =SUM(C57:C65) -> 0 | D66: =SUM(D57:D65) -> 0 | E66: =SUM(E57:E65) -> 0 | F66: =SUM(F57:F65) -> 0 | G66: =SUM(G57:G65) -> 0 | I66: =SUM(C66:H66) -> 0 | J66: Check that Total is = or > than
J67: Total Direct Benefits
J68: =IF(I66>=I52,"OK","ERROR") -> OK
A69: Outstanding Funding required | C69: calculated from the tables above
B70: Labour | C70: =C40-C57 -> 0 | D70: 0 | E70: 0 | F70: 0 | G70: 0 | H70: =H40-H57 -> 0 | I70: =SUM(C70:H70) -> 0
B71: Equipment | C71: 0 | D71: 0 | E71: 0 | F71: 0 | G71: 0 | H71: 0 | I71: =SUM(C71:H71) -> 0
B72: Contractors | C72: 0 | D72: 0 | E72: 0 | F72: 0 | G72: 0 | H72: 0 | I72: 0
B73: IT | C73: 0 | D73: 0 | E73: 0 | F73: 0 | G73: 0 | H73: 0 | I73: 0
B74: IPR Costs | C74: 0 | D74: 0 | E74: 0 | F74: 0 | G74: 0 | H74: 0 | I74: 0
B75: Travel & Expenses | C75: 0 | D75: 0 | E75: 0 | F75: 0 | G75: 0 | H75: 0 | I75: 0
A76: Payments to users & Contigency | C76: 0 | D76: 0 | E76: 0 | F76: 0 | G76: 0 | H76: 0 | I76: 0
B77: Decommissioning | C77: 0 | D77: 0 | E77: 0 | F77: 0 | G77: 0 | H77: 0 | I77: 0 | J77: Check that Total is =to
B78: Other | C78: 0 | D78: 0 | E78: 0 | F78: 0 | G78: 0 | H78: 0 | I78: 0 | J78: Total Outstanding Funding required
B79: Total | C79: 0 | D79: 0 | E79: 0 | F79: 0 | G79: 0 | H79: 0 | I79: =SUM(I70:I78) -> 0 | J79: =IF(I79='Project Cost Summary'!M13, "OK","ERROR") -> OK
A81: balance | B81: 2.273736754e-13 | C81: 0 | D81: =B81-C79-D79 -> 2.273736754e-13 | E81: =D81-E79+D82 -> 2.31921149e-13 | F81: =E81-F79+E82 -> 2.365140972e-13 | G81: =F81-G79+F82 -> 2.411984497e-13 | H81: =G81-H79+G82 -> 2.459755751e-13 | I81: =B81 -> 2.273736754e-13
A82: interest | C82: 0 | D82: =((B81+D81)/2)*$D86 -> 4.547473509e-15 | E82: =((D81+E81)/2)*$D86 -> 4.592948244e-15 | F82: =((E81+F81)/2)*$D86 -> 4.684352461e-15 | G82: =((F81+G81)/2)*$D86 -> 4.777125469e-15 | H82: =((G81+H81)/2)*$D86 -> 4.871740248e-15 | I82: =SUM(D82:H82) -> 2.347363993e-14
I83: =I81+I82 -> 2.508473154e-13 | J83: =I79-I83 -> -2.508473154e-13
B85: Bank of England interest rate | D85: 0.005 | G85: SECOND TIER FUNDING REQUEST £ | I85: =I81 -> 2.273736754e-13
B86: interest rate used in calculation | D86: =D85+1.5% -> 0.02
B87: RPI adjustment | C87: 2014/15 | D87: 2015/16 | E87: 2016/17 | F87: 2017/18 | G87: 2018/19 | H87: 2019/20 | I87: 2020/21 | J87: 2021/2022 | K87: 2022/2023
B88: Index | C88: 259.536723 | D88: 267.5823614 | E88: 275.8774146 | F88: 284.4296145 | G88: 293.2469325 | H88: 302.3375874 | I88: 311.7100526 | J88: 321.3730643 | K88: 331.3356293
B89: Annual inflation | C89: 0.031 | D89: 0.031 | E89: 0.031 | F89: 0.031 | G89: 0.031 | H89: 0.031 | I89: 0.031 | J89: 0.031 | K89: 0.031
A90: n.b the Second Tier Funding Request calculation should use the Bank of England Base rate plus 1.5% on 31 June of the year in which the Full Submission is made.

Sheet Direct Benefits
A1: Direct Benefits
A3: Direct Benefit: Any benefits of the Project accruing to the DNO during the Project Implementation and include the following
B4: - Revenue included in the DNO's Full Business Plan Questionnaire (FBPQ) for DPCR5 which will be saved through undertaking the project
B5: - Incentive payments generated as a result of the Project for the duration of the Project
B7: Description of Direct Benefit
C8: 2013/14 | D8: 2014/15 | E8: Total
E9: =SUM(C9:D9) -> 0
E10: =SUM(C10:D10) -> 0
B11: Total Direct Benefits | C11: =SUM(C9:C10) -> 0 | D11: =SUM(D9:D10) -> 0 | E11: =SUM(E9:E10) -> 0
B14: n.b. These are Direct Benefits associated with the Project itself, not the wider deployment of the Solution and therefore should not exceed beyond the project or the DPCR5 period

Sheet Project Cost Summary
A1: Project Cost Summary
C2: Total
C3: Cost type
C4: Labour | D4: Equipment | E4: Contractors | F4: IT | G4: IPR Costs | H4: Travel & Expenses | I4: Payments to users | J4: Contigency | K4: Decommissioning | L4: Other | M4: Total
B5: Total Project Cost | C5: =SUM(C18+C31+C44+C57+C70) -> 0 | D5: 0 | E5: 0 | F5: 0 | G5: 0 | H5: 0 | I5: 0 | J5: 0 | K5: 0 | L5: 0 | M5: =SUM(C5:L5) -> 0
B6: Project Partner 1 | C6: =SUM(C19+C32+C45+C58+C71) -> 0 | D6: 0 | E6: 0 | F6: 0 | G6: 0 | H6: 0 | I6: 0 | J6: 0 | K6: 0 | L6: 0 | M6: =SUM(C6:L6) -> 0
B7: Project Partner 2 | C7: =SUM(C20+C33+C46+C59+C72) -> 0 | D7: 0 | E7: 0 | F7: 0 | G7: 0 | H7: 0 | I7: 0 | J7: 0 | K7: 0 | L7: 0 | M7: 0
B8: Project Partner 3 | C8: =SUM(C21+C34+C47+C60+C73) -> 0 | D8: 0 | E8: 0 | F8: 0 | G8: 0 | H8: 0 | I8: 0 | J8: 0 | K8: 0 | L8: 0 | M8: 0
B9: External Funding | C9: =SUM(C6:C8) -> 0 | D9: 0 | E9: 0 | F9: 0 | G9: 0 | H9: 0 | I9: 0 | J9: 0 | K9: 0 | L9: 0 | M9: =SUM(C9:L9) -> 0
B10: DNO extra contribution | C10: =C23+C36+C49+C62+C75 -> 0 | D10: 0 | E10: 0 | F10: 0 | G10: 0 | H10: 0 | I10: 0 | J10: 0 | K10: 0 | L10: 0 | M10: 0
B11: Initial Net Funding Required | C11: =C24+C37+C50+C63+C76 -> 0 | D11: 0 | E11: 0 | F11: 0 | G11: 0 | H11: 0 | I11: 0 | J11: 0 | K11: 0 | L11: 0 | M11: 0 | O11: Check Total Initial Net Funding Required matches that on the Second Tier Funding Request tab
B12: DNO Compulsory Contribution / Direct Benefits | C12: =C25+C38+C51+C64+C77 -> 0 | D12: 0 | E12: 0 | F12: 0 | G12: 0 | H12: 0 | I12: 0 | J12: 0 | K12: 0 | L12: 0 | M12: 0 | O12: =IF(ABS(M11-'Second Tier Funding Request'!I49)<0.01,"OK","ERROR") -> OK
B13: Outstanding Funding Required | C13: =C26+C39+C52+C65+C78 -> 0 | D13: 0 | E13: 0 | F13: 0 | G13: 0 | H13: 0 | I13: 0 | J13: 0 | K13: 0 | L13: 0 | M13: =SUM(C13:L13) -> 0
C15: 2014/15
C16: Cost type
C17: Labour | D17: Equipment | E17: Contractors | F17: IT | G17: IPR Costs | H17: Travel & Expenses | I17: Payments to users | J17: Contigency | K17: Decommissioning | L17: Other | M17: Total
B18: Total Project Cost | C18: ='2014-15'!G9 -> 0 | D18: ='2014-15'!H9 -> 0 | E18: ='2014-15'!I9 -> 0 | F18: ='2014-15'!J9 -> 0 | G18: ='2014-15'!K9 -> 0 | H18: ='2014-15'!L9 -> 0 | I18: ='2014-15'!M9 -> 0 | J18: ='2014-15'!N9 -> 0 | K18: ='2014-15'!O9 -> 0 | L18: ='2014-15'!P9 -> 0 | M18: =SUM(C18:L18) -> 0
B19: Project Partner 1 | C19: ='2014-15'!AK9 -> 0 | D19: ='2014-15'!AL9 -> 0 | E19: ='2014-15'!AM9 -> 0 | F19: ='2014-15'!AN9 -> 0 | G19: ='2014-15'!AO9 -> 0 | H19: ='2014-15'!AP9 -> 0 | I19: ='2014-15'!AQ9 -> 0 | J19: ='2014-15'!AR9 -> 0 | K19: ='2014-15'!AS9 -> 0 | L19: ='2014-15'!AT9 -> 0 | M19: 0
B20: Project Partner 2 | C20: ='2014-15'!AV9 -> 0 | D20: ='2014-15'!AW9 -> 0 | E20: ='2014-15'!AX9 -> 0 | F20: ='2014-15'!AY9 -> 0 | G20: ='2014-15'!AZ9 -> 0 | H20: ='2014-15'!BA9 -> 0 | I20: ='2014-15'!BB9 -> 0 | J20: ='2014-15'!BC9 -> 0 | K20: ='2014-15'!BD9 -> 0 | L20: ='2014-15'!BE9 -> 0 | M20: 0
B21: Project Partner 3 | C21: ='2014-15'!BG9 -> 0 | D21: ='2014-15'!BH9 -> 0 | E21: ='2014-15'!BI9 -> 0 | F21: ='2014-15'!BJ9 -> 0 | G21: ='2014-15'!BK9 -> 0 | H21: ='2014-15'!BL9 -> 0 | I21: ='2014-15'!BM9 -> 0 | J21: ='2014-15'!BN9 -> 0 | K21: ='2014-15'!BO9 -> 0 | L21: ='2014-15'!BP9 -> 0 | M21: 0
B22: External Funding | C22: =SUM(C19:C21) -> 0 | D22: 0 | E22: 0 | F22: 0 | G22: 0 | H22: 0 | I22: 0 | J22: 0 | K22: 0 | L22: 0 | M22: 0
B23: DNO extra contribution | C23: ='2014-15'!BR9 -> 0 | D23: ='2014-15'!BS9 -> 0 | E23: ='2014-15'!BT9 -> 0 | F23: ='2014-15'!BU9 -> 0 | G23: ='2014-15'!BV9 -> 0 | H23: ='2014-15'!BW9 -> 0 | I23: ='2014-15'!BX9 -> 0 | J23: ='2014-15'!BY9 -> 0 | K23: ='2014-15'!BZ9 -> 0 | L23: ='2014-15'!CA9 -> 0 | M23: 0
B24: Initial Net Funding Required | C24: =C18-C22-C23 -> 0 | D24: 0 | E24: 0 | F24: 0 | G24: 0 | H24: 0 | I24: 0 | J24: 0 | K24: 0 | L24: 0 | M24: 0
B25: DNO Compulsory Contribution / Direct Benefits | C25: ='2014-15'!Z9 -> 0 | D25: ='2014-15'!AA9 -> 0 | E25: ='2014-15'!AB9 -> 0 | F25: ='2014-15'!AC9 -> 0 | G25: ='2014-15'!AD9 -> 0 | H25: ='2014-15'!AE9 -> 0 | I25: ='2014-15'!AF9 -> 0 | J25: ='2014-15'!AG9 -> 0 | K25: ='2014-15'!AH9 -> 0 | L25: ='2014-15'!AI9 -> 0 | M25: 0
B26: Outstanding Funding Required | C26: ='2014-15'!CC9 -> 0 | D26: ='2014-15'!CD9 -> 0 | E26: ='2014-15'!CE9 -> 0 | F26: ='2014-15'!CF9 -> 0 | G26: ='2014-15'!CG9 -> 0 | H26: ='2014-15'!CH9 -> 0 | I26: ='2014-15'!CI9 -> 0 | J26: ='2014-15'!CJ9 -> 0 | K26: ='2014-15'!CK9 -> 0 | L26: ='2014-15'!CL9 -> 0 | M26: 0
C28: 2015/16
C29: Cost type
C30: Labour | D30: Equipment | E30: Contractors | F30: IT | G30: IPR Costs | H30: Travel & Expenses | I30: Payments to users | J30: Contigency | K30: Decommissioning | L30: Other | M30: Total
B31: Total Project Cost | C31: ='2015-16'!G9 -> 0 | D31: ='2015-16'!H9 -> 0 | E31: ='2015-16'!I9 -> 0 | F31: ='2015-16'!J9 -> 0 | G31: ='2015-16'!K9 -> 0 | H31: ='2015-16'!L9 -> 0 | I31: ='2015-16'!M9 -> 0 | J31: ='2015-16'!N9 -> 0 | K31: ='2015-16'!O9 -> 0 | L31: ='2015-16'!P9 -> 0 | M31: =SUM(C31:L31) -> 0
B32: Project Partner 1 | C32: ='2015-16'!AK9 -> 0 | D32: ='2015-16'!AL9 -> 0 | E32: ='2015-16'!AM9 -> 0 | F32: ='2015-16'!AN9 -> 0 | G32: ='2015-16'!AO9 -> 0 | H32: ='2015-16'!AP9 -> 0 | I32: ='2015-16'!AQ9 -> 0 | J32: ='2015-16'!AR9 -> 0 | K32: ='2015-16'!AS9 -> 0 | L32: ='2015-16'!AT9 -> 0 | M32: 0
B33: Project Partner 2 | C33: ='2015-16'!AV9 -> 0 | D33: ='2015-16'!AW9 -> 0 | E33: ='2015-16'!AX9 -> 0 | F33: ='2015-16'!AY9 -> 0 | G33: ='2015-16'!AZ9 -> 0 | H33: ='2015-16'!BA9 -> 0 | I33: ='2015-16'!BB9 -> 0 | J33: ='2015-16'!BC9 -> 0 | K33: ='2015-16'!BD9 -> 0 | L33: ='2015-16'!BE9 -> 0 | M33: 0
B34: Project Partner 3 | C34: ='2015-16'!BG9 -> 0 | D34: ='2015-16'!BH9 -> 0 | E34: ='2015-16'!BI9 -> 0 | F34: ='2015-16'!BJ9 -> 0 | G34: ='2015-16'!BK9 -> 0 | H34: ='2015-16'!BL9 -> 0 | I34: ='2015-16'!BM9 -> 0 | J34: ='2015-16'!BN9 -> 0 | K34: ='2015-16'!BO9 -> 0 | L34: ='2015-16'!BP9 -> 0 | M34: 0
B35: External Funding | C35: =SUM(C32:C34) -> 0 | D35: 0 | E35: 0 | F35: 0 | G35: 0 | H35: 0 | I35: 0 | J35: 0 | K35: 0 | L35: 0 | M35: 0
B36: DNO extra contribution | C36: ='2015-16'!BR9 -> 0 | D36: ='2015-16'!BS9 -> 0 | E36: ='2015-16'!BT9 -> 0 | F36: ='2015-16'!BU9 -> 0 | G36: ='2015-16'!BV9 -> 0 | H36: ='2015-16'!BW9 -> 0 | I36: ='2015-16'!BX9 -> 0 | J36: ='2015-16'!BY9 -> 0 | K36: ='2015-16'!BZ9 -> 0 | L36: ='2015-16'!CA9 -> 0 | M36: 0
B37: Initial Net Funding Required | C37: =C31-C35-C36 -> 0 | D37: =D31-D35-D36 -> 0 | E37: 0 | F37: 0 | G37: 0 | H37: 0 | I37: 0 | J37: 0 | K37: 0 | L37: 0 | M37: 0
B38: DNO Compulsory Contribution / Direct Benefits | C38: ='2015-16'!Z9 -> 0 | D38: ='2015-16'!AA9 -> 0 | E38: ='2015-16'!AB9 -> 0 | F38: ='2015-16'!AC9 -> 0 | G38: ='2015-16'!AD9 -> 0 | H38: ='2015-16'!AE9 -> 0 | I38: ='2015-16'!AF9 -> 0 | J38: ='2015-16'!AG9 -> 0 | K38: ='2015-16'!AH9 -> 0 | L38: ='2015-16'!AI9 -> 0 | M38: 0
B39: Outstanding Funding Required | C39: ='2015-16'!CC9 -> 0 | D39: ='2015-16'!CD9 -> 0 | E39: ='2015-16'!CE9 -> 0 | F39: ='2015-16'!CF9 -> 0 | G39: ='2015-16'!CG9 -> 0 | H39: ='2015-16'!CH9 -> 0 | I39: ='2015-16'!CI9 -> 0 | J39: ='2015-16'!CJ9 -> 0 | K39: ='2015-16'!CK9 -> 0 | L39: ='2015-16'!CL9 -> 0 | M39: 0
C41: 2016/17
C42: Cost type
C43: Labour | D43: Equipment | E43: Contractors | F43: IT | G43: IPR Costs | H43: Travel & Expenses | I43: Payments to users | J43: Contigency | K43: Decommissioning | L43: Other | M43: Total
B44: Total Project Cost | C44: ='2016-17'!G9 -> 0 | D44: ='2016-17'!H9 -> 0 | E44: ='2016-17'!I9 -> 0 | F44: ='2016-17'!J9 -> 0 | G44: ='2016-17'!K9 -> 0 | H44: ='2016-17'!L9 -> 0 | I44: ='2016-17'!M9 -> 0 | J44: ='2016-17'!N9 -> 0 | K44: ='2016-17'!O9 -> 0 | L44: ='2016-17'!P9 -> 0 | M44: =SUM(C44:L44) -> 0
B45: Project Partner 1 | C45: ='2016-17'!AK9 -> 0 | D45: ='2016-17'!AL9 -> 0 | E45: ='2016-17'!AM9 -> 0 | F45: ='2016-17'!AN9 -> 0 | G45: ='2016-17'!AO9 -> 0 | H45: ='2016-17'!AP9 -> 0 | I45: ='2016-17'!AQ9 -> 0 | J45: ='2016-17'!AR9 -> 0 | K45: ='2016-17'!AS9 -> 0 | L45: ='2016-17'!AT9 -> 0 | M45: 0
B46: Project Partner 2 | C46: ='2016-17'!AV9 -> 0 | D46: ='2016-17'!AW9 -> 0 | E46: ='2016-17'!AX9 -> 0 | F46: ='2016-17'!AY9 -> 0 | G46: ='2016-17'!AZ9 -> 0 | H46: ='2016-17'!BA9 -> 0 | I46: ='2016-17'!BB9 -> 0 | J46: ='2016-17'!BC9 -> 0 | K46: ='2016-17'!BD9 -> 0 | L46: ='2016-17'!BE9 -> 0 | M46: 0
B47: Project Partner 3 | C47: ='2016-17'!BG9 -> 0 | D47: ='2016-17'!BH9 -> 0 | E47: ='2016-17'!BI9 -> 0 | F47: ='2016-17'!BJ9 -> 0 | G47: ='2016-17'!BK9 -> 0 | H47: ='2016-17'!BL9 -> 0 | I47: ='2016-17'!BM9 -> 0 | J47: ='2016-17'!BN9 -> 0 | K47: ='2016-17'!BO9 -> 0 | L47: ='2016-17'!BP9 -> 0 | M47: 0
B48: External Funding | C48: =SUM(C45:C47) -> 0 | D48: 0 | E48: 0 | F48: 0 | G48: 0 | H48: 0 | I48: 0 | J48: 0 | K48: 0 | L48: 0 | M48: 0
B49: DNO extra contribution | C49: ='2016-17'!BR9 -> 0 | D49: ='2016-17'!BS9 -> 0 | E49: ='2016-17'!BT9 -> 0 | F49: ='2016-17'!BU9 -> 0 | G49: ='2016-17'!BV9 -> 0 | H49: ='2016-17'!BW9 -> 0 | I49: ='2016-17'!BX9 -> 0 | J49: ='2016-17'!BY9 -> 0 | K49: ='2016-17'!BZ9 -> 0 | L49: ='2016-17'!CA9 -> 0 | M49: 0
B50: Initial Net Funding Required | C50: =C44-C48-C49 -> 0 | D50: =D44-D48-D49 -> 0 | E50: 0 | F50: =F44-F48-F49 -> 0 | G50: 0 | H50: 0 | I50: 0 | J50: 0 | K50: 0 | L50: 0 | M50: 0
B51: DNO Compulsory Contribution / Direct Benefits | C51: ='2016-17'!Z9 -> 0 | D51: ='2016-17'!AA9 -> 0 | E51: ='2016-17'!AB9 -> 0 | F51: ='2016-17'!AC9 -> 0 | G51: ='2016-17'!AD9 -> 0 | H51: ='2016-17'!AE9 -> 0 | I51: ='2016-17'!AF9 -> 0 | J51: ='2016-17'!AG9 -> 0 | K51: ='2016-17'!AH9 -> 0 | L51: ='2016-17'!AI9 -> 0 | M51: 0
B52: Outstanding Funding Required | C52: ='2016-17'!CC9 -> 0 | D52: ='2016-17'!CD9 -> 0 | E52: ='2016-17'!CE9 -> 0 | F52: ='2016-17'!CF9 -> 0 | G52: ='2016-17'!CG9 -> 0 | H52: ='2016-17'!CH9 -> 0 | I52: ='2016-17'!CI9 -> 0 | J52: ='2016-17'!CJ9 -> 0 | K52: ='2016-17'!CK9 -> 0 | L52: ='2016-17'!CL9 -> 0 | M52: 0
C54: 2017/18
C55: Cost type
C56: Labour | D56: Equipment | E56: Contractors | F56: IT | G56: IPR Costs | H56: Travel & Expenses | I56: Payments to users | J56: Contigency | K56: Decommissioning | L56: Other | M56: Total
B57: Total Project Cost | C57: ='2017-18'!G9 -> 0 | D57: ='2017-18'!H9 -> 0 | E57: ='2017-18'!I9 -> 0 | F57: ='2017-18'!J9 -> 0 | G57: ='2017-18'!K9 -> 0 | H57: ='2017-18'!L9 -> 0 | I57: ='2017-18'!M9 -> 0 | J57: ='2017-18'!N9 -> 0 | K57: ='2017-18'!O9 -> 0 | L57: ='2017-18'!P9 -> 0 | M57: =SUM(C57:L57) -> 0
B58: Project Partner 1 | C58: ='2017-18'!AK9 -> 0 | D58: ='2017-18'!AL9 -> 0 | E58: ='2017-18'!AM9 -> 0 | F58: ='2017-18'!AN9 -> 0 | G58: ='2017-18'!AO9 -> 0 | H58: ='2017-18'!AP9 -> 0 | I58: ='2017-18'!AQ9 -> 0 | J58: ='2017-18'!AR9 -> 0 | K58: ='2017-18'!AS9 -> 0 | L58: ='2017-18'!AT9 -> 0 | M58: =SUM(C58:L58) -> 0
B59: Project Partner 2 | C59: ='2017-18'!AV9 -> 0 | D59: ='2017-18'!AW9 -> 0 | E59: ='2017-18'!AX9 -> 0 | F59: ='2017-18'!AY9 -> 0 | G59: ='2017-18'!AZ9 -> 0 | H59: ='2017-18'!BA9 -> 0 | I59: ='2017-18'!BB9 -> 0 | J59: ='2017-18'!BC9 -> 0 | K59: ='2017-18'!BD9 -> 0 | L59: ='2017-18'!BE9 -> 0 | M59: 0
B60: Project Partner 3 | C60: ='2017-18'!BG9 -> 0 | D60: ='2017-18'!BH9 -> 0 | E60: ='2017-18'!BI9 -> 0 | F60: ='2017-18'!BJ9 -> 0 | G60: ='2017-18'!BK9 -> 0 | H60: ='2017-18'!BL9 -> 0 | I60: ='2017-18'!BM9 -> 0 | J60: ='2017-18'!BN9 -> 0 | K60: ='2017-18'!BO9 -> 0 | L60: ='2017-18'!BP9 -> 0 | M60: =SUM(C60:L60) -> 0
B61: External Funding | C61: =SUM(C58:C60) -> 0 | D61: 0 | E61: 0 | F61: 0 | G61: 0 | H61: 0 | I61: 0 | J61: 0 | K61: 0 | L61: 0 | M61: 0
B62: DNO extra contribution | C62: ='2017-18'!BR9 -> 0 | D62: ='2017-18'!BS9 -> 0 | E62: ='2017-18'!BT9 -> 0 | F62: ='2017-18'!BU9 -> 0 | G62: ='2017-18'!BV9 -> 0 | H62: ='2017-18'!BW9 -> 0 | I62: ='2017-18'!BX9 -> 0 | J62: ='2017-18'!BY9 -> 0 | K62: ='2017-18'!BZ9 -> 0 | L62: ='2017-18'!CA9 -> 0 | M62: 0
B63: Initial Net Funding Required | C63: =C57-C61-C62 -> 0 | D63: =D57-D61-D62 -> 0 | E63: 0 | F63: 0 | G63: 0 | H63: 0 | I63: 0 | J63: 0 | K63: 0 | L63: 0 | M63: 0
B64: DNO Compulsory Contribution / Direct Benefits | C64: ='2017-18'!Z9 -> 0 | D64: ='2017-18'!AA9 -> 0 | E64: ='2017-18'!AB9 -> 0 | F64: ='2017-18'!AC9 -> 0 | G64: ='2017-18'!AD9 -> 0 | H64: ='2017-18'!AE9 -> 0 | I64: ='2017-18'!AF9 -> 0 | J64: ='2017-18'!AG9 -> 0 | K64: ='2017-18'!AH9 -> 0 | L64: ='2017-18'!AI9 -> 0 | M64: 0
B65: Outstanding Funding Required | C65: ='2017-18'!CC9 -> 0 | D65: ='2017-18'!CD9 -> 0 | E65: ='2017-18'!CE9 -> 0 | F65: ='2017-18'!CF9 -> 0 | G65: ='2017-18'!CG9 -> 0 | H65: ='2017-18'!CH9 -> 0 | I65: ='2017-18'!CI9 -> 0 | J65: ='2017-18'!CJ9 -> 0 | K65: ='2017-18'!CK9 -> 0 | L65: ='2017-18'!CL9 -> 0 | M65: =SUM(C65:L65) -> 0
C67: 2018/19
C68: Cost type
C69: Labour | D69: Equipment | E69: Contractors | F69: IT | G69: IPR Costs | H69: Travel & Expenses | I69: Payments to users | J69: Contigency | K69: Decommissioning | L69: Other | M69: Total
B70: Total Project Cost | C70: ='2018-19'!G9 -> 0 | D70: ='2018-19'!H9 -> 0 | E70: ='2018-19'!I9 -> 0 | F70: ='2018-19'!J9 -> 0 | G70: ='2018-19'!K9 -> 0 | H70: ='2018-19'!L9 -> 0 | I70: ='2018-19'!M9 -> 0 | J70: ='2018-19'!N9 -> 0 | K70: ='2018-19'!O9 -> 0 | L70: ='2018-19'!P9 -> 0 | M70: =SUM(C70:L70) -> 0
B71: Project Partner 1 | C71: ='2018-19'!AK9 -> 0 | D71: ='2018-19'!AL9 -> 0 | E71: ='2018-19'!AM9 -> 0 | F71: ='2018-19'!AN9 -> 0 | G71: ='2018-19'!AO9 -> 0 | H71: ='2018-19'!AP9 -> 0 | I71: ='2018-19'!AQ9 -> 0 | J71: ='2018-19'!AR9 -> 0 | K71: ='2018-19'!AS9 -> 0 | L71: ='2018-19'!AT9 -> 0 | M71: 0
B72: Project Partner 2 | C72: ='2018-19'!AV9 -> 0 | D72: ='2018-19'!AW9 -> 0 | E72: ='2018-19'!AX9 -> 0 | F72: ='2018-19'!AY9 -> 0 | G72: ='2018-19'!AZ9 -> 0 | H72: ='2018-19'!BA9 -> 0 | I72: ='2018-19'!BB9 -> 0 | J72: ='2018-19'!BC9 -> 0 | K72: ='2018-19'!BD9 -> 0 | L72: ='2018-19'!BE9 -> 0 | M72: 0
B73: Project Partner 3 | C73: ='2018-19'!BG9 -> 0 | D73: ='2018-19'!BH9 -> 0 | E73: ='2018-19'!BI9 -> 0 | F73: ='2018-19'!BJ9 -> 0 | G73: ='2018-19'!BK9 -> 0 | H73: ='2018-19'!BL9 -> 0 | I73: ='2018-19'!BM9 -> 0 | J73: ='2018-19'!BN9 -> 0 | K73: ='2018-19'!BO9 -> 0 | L73: ='2018-19'!BP9 -> 0 | M73: 0
B74: External Funding | C74: =SUM(C71:C73) -> 0 | D74: 0 | E74: 0 | F74: 0 | G74: 0 | H74: 0 | I74: 0 | J74: 0 | K74: 0 | L74: 0 | M74: 0
B75: DNO extra contribution | C75: ='2018-19'!BR9 -> 0 | D75: ='2018-19'!BS9 -> 0 | E75: ='2018-19'!BT9 -> 0 | F75: ='2018-19'!BU9 -> 0 | G75: ='2018-19'!BV9 -> 0 | H75: ='2018-19'!BW9 -> 0 | I75: ='2018-19'!BX9 -> 0 | J75: ='2018-19'!BY9 -> 0 | K75: ='2018-19'!BZ9 -> 0 | L75: ='2018-19'!CA9 -> 0 | M75: 0
B76: Initial Net Funding Required | C76: =C70-C74-C75 -> 0 | D76: 0 | E76: 0 | F76: 0 | G76: 0 | H76: 0 | I76: 0 | J76: 0 | K76: 0 | L76: 0 | M76: 0
B77: DNO Compulsory Contribution | C77: ='2018-19'!Z9 -> 0 | D77: ='2018-19'!AA9 -> 0 | E77: ='2018-19'!AB9 -> 0 | F77: ='2018-19'!AC9 -> 0 | G77: ='2018-19'!AD9 -> 0 | H77: ='2018-19'!AE9 -> 0 | I77: ='2018-19'!AF9 -> 0 | J77: ='2018-19'!AG9 -> 0 | K77: ='2018-19'!AH9 -> 0 | L77: ='2018-19'!AI9 -> 0 | M77: 0
B78: Outstanding Funding Required | C78: ='2018-19'!CC9 -> 0 | D78: ='2018-19'!CD9 -> 0 | E78: ='2018-19'!CE9 -> 0 | F78: ='2018-19'!CF9 -> 0 | G78: ='2018-19'!CG9 -> 0 | H78: ='2018-19'!CH9 -> 0 | I78: ='2018-19'!CI9 -> 0 | J78: ='2018-19'!CJ9 -> 0 | K78: ='2018-19'!CK9 -> 0 | L78: ='2018-19'!CL9 -> 0 | M78: 0
C80: 2019/20
C81: Cost type
C82: Labour | D82: Equipment | E82: Contractors | F82: IT | G82: IPR Costs | H82: Travel & Expenses | I82: Payments to users | J82: Contigency | K82: Decommissioning | L82: Other | M82: Total
B83: Total Project Cost | C83: ='2019-20'!G9 -> 0 | D83: ='2019-20'!H9 -> 0 | E83: ='2019-20'!I9 -> 0 | F83: ='2019-20'!J9 -> 0 | G83: ='2019-20'!K9 -> 0 | H83: ='2019-20'!L9 -> 0 | I83: ='2019-20'!M9 -> 0 | J83: ='2019-20'!N9 -> 0 | K83: ='2019-20'!O9 -> 0 | L83: ='2019-20'!P9 -> 0 | M83: =SUM(C83:L83) -> 0
B84: Project Partner 1 | C84: ='2019-20'!AK9 -> 0 | D84: ='2019-20'!AL9 -> 0 | E84: ='2019-20'!AM9 -> 0 | F84: ='2019-20'!AN9 -> 0 | G84: ='2019-20'!AO9 -> 0 | H84: ='2019-20'!AP9 -> 0 | I84: ='2019-20'!AQ9 -> 0 | J84: ='2019-20'!AR9 -> 0 | K84: ='2019-20'!AS9 -> 0 | L84: ='2019-20'!AT9 -> 0 | M84: 0
B85: Project Partner 2 | C85: ='2019-20'!AV9 -> 0 | D85: ='2019-20'!AW9 -> 0 | E85: ='2019-20'!AX9 -> 0 | F85: ='2019-20'!AY9 -> 0 | G85: ='2019-20'!AZ9 -> 0 | H85: ='2019-20'!BA9 -> 0 | I85: ='2019-20'!BB9 -> 0 | J85: ='2019-20'!BC9 -> 0 | K85: ='2019-20'!BD9 -> 0 | L85: ='2019-20'!BE9 -> 0 | M85: 0
B86: Project Partner 3 | C86: ='2019-20'!BG9 -> 0 | D86: ='2019-20'!BH9 -> 0 | E86: ='2019-20'!BI9 -> 0 | F86: ='2019-20'!BJ9 -> 0 | G86: ='2019-20'!BK9 -> 0 | H86: ='2019-20'!BL9 -> 0 | I86: ='2019-20'!BM9 -> 0 | J86: ='2019-20'!BN9 -> 0 | K86: ='2019-20'!BO9 -> 0 | L86: ='2019-20'!BP9 -> 0 | M86: 0
B87: External Funding | C87: =SUM(C84:C86) -> 0 | D87: 0 | E87: 0 | F87: 0 | G87: 0 | H87: 0 | I87: 0 | J87: 0 | K87: 0 | L87: 0 | M87: 0
B88: DNO extra contribution | C88: ='2019-20'!BR9 -> 0 | D88: ='2019-20'!BS9 -> 0 | E88: ='2019-20'!BT9 -> 0 | F88: ='2019-20'!BU9 -> 0 | G88: ='2019-20'!BV9 -> 0 | H88: ='2019-20'!BW9 -> 0 | I88: ='2019-20'!BX9 -> 0 | J88: ='2019-20'!BY9 -> 0 | K88: ='2019-20'!BZ9 -> 0 | L88: ='2019-20'!CA9 -> 0 | M88: 0
B89: Initial Net Funding Required | C89: =C83-C87-C88 -> 0 | D89: 0 | E89: 0 | F89: 0 | G89: 0 | H89: 0 | I89: 0 | J89: 0 | K89: 0 | L89: 0 | M89: 0
B90: DNO Compulsory Contribution | C90: ='2019-20'!Z9 -> 0 | D90: ='2019-20'!AA9 -> 0 | E90: ='2019-20'!AB9 -> 0 | F90: ='2019-20'!AC9 -> 0 | G90: ='2019-20'!AD9 -> 0 | H90: ='2019-20'!AE9 -> 0 | I90: ='2019-20'!AF9 -> 0 | J90: ='2019-20'!AG9 -> 0 | K90: ='2019-20'!AH9 -> 0 | L90: ='2019-20'!AI9 -> 0 | M90: 0
B91: Outstanding Funding Required | C91: ='2019-20'!CC9 -> 0 | D91: ='2019-20'!CD9 -> 0 | E91: ='2019-20'!CE9 -> 0 | F91: ='2019-20'!CF9 -> 0 | G91: ='2019-20'!CG9 -> 0 | H91: ='2019-20'!CH9 -> 0 | I91: ='2019-20'!CI9 -> 0 | J91: ='2019-20'!CJ9 -> 0 | K91: ='2019-20'!CK9 -> 0 | L91: ='2019-20'!CL9 -> 0 | M91: 0

Sheet 2014-15
B1: Project Costs in 2014-15
G4: Total Cost £K | R4: Funding source % | Z4: DNO Compulsory Contribution/Direct Benefits | AK4: Project Partner 1 | AV4: Project Partner 2 | BG4: Project Partner 3 | BR4: DNO Extra Contribution | CC4: Outstanding Funding Required
G5: Labour | H5: Equipment | I5: Contractors | J5: IT | K5: IPR Costs | L5: Travel & Expenses | M5: Payments to users | N5: Contigency | O5: Decommissioning | P5: Other | R5: DNO Compulsory Contribution /Direct Benefits | S5: Project Partner 1 | T5: Project Partner 2 | U5: Project Partner 3 | V5: DNO Extra Contribution | W5: Oustanding Funding Required | X5: Total | Z5: Labour | AA5: Equipment | AB5: Contractors | AC5: IT | AD5: IPR Costs | AE5: Travel & Expenses | AF5: Payments to users | AG5: Contigency | AH5: Decommissioning | AI5: Other | AK5: Labour | AL5: Equipment | AM5: Contractors | AN5: IT | AO5: IPR Costs | AP5: Travel & Expenses | AQ5: Payments to users | AR5: Contigency | AS5: Decommissioning | AT5: Other | AV5: Labour | AW5: Equipment | AX5: Contractors | AY5: IT | AZ5: IPR Costs | BA5: Travel & Expenses | BB5: Payments to users | BC5: Contigency | BD5: Decommissioning | BE5: Other | BG5: Labour | BH5: Equipment | BI5: Contractors | BJ5: IT | BK5: IPR Costs | BL5: Travel & Expenses | BM5: Payments to users | BN5: Contigency | BO5: Decommissioning | BP5: Other | BR5: Labour | BS5: Equipment | BT5: Contractors | BU5: IT | BV5: IPR Costs | BW5: Travel & Expenses | BX5: Payments to users | BY5: Contigency | BZ5: Decommissioning | CA5: Other | CC5: Labour | CD5: Equipment | CE5: Contractors | CF5: IT | CG5: IPR Costs | CH5: Travel & Expenses | CI5: Payments to users | CJ5: Contigency | CK5: Decommissioning | CL5: Other
B6: Description | C6: Task | D6: Project Workstream
X7: =SUM(R7:W7) -> 0 | Z7: =$R7*G7 -> 0 | AA7: =$R7*H7 -> 0 | AB7: 0 | AC7: 0 | AD7: 0 | AE7: 0 | AF7: 0 | AG7: 0 | AH7: 0 | AI7: 0 | AK7: =$S7*G7 -> 0 | AL7: =$S7*H7 -> 0 | AM7: 0 | AN7: 0 | AO7: 0 | AP7: 0 | AQ7: 0 | AR7: 0 | AS7: 0 | AT7: 0 | AV7: =$T7*G7 -> 0 | AW7: =$T7*H7 -> 0 | AX7: 0 | AY7: 0 | AZ7: 0 | BA7: 0 | BB7: 0 | BC7: 0 | BD7: 0 | BE7: 0 | BG7: =$U7*G7 -> 0 | BH7: =$U7*H7 -> 0 | BI7: 0 | BJ7: 0 | BK7: 0 | BL7: 0 | BM7: 0 | BN7: 0 | BO7: 0 | BP7: 0 | BR7: =$V7*G7 -> 0 | BS7: =$V7*H7 -> 0 | BT7: 0 | BU7: 0 | BV7: 0 | BW7: 0 | BX7: 0 | BY7: 0 | BZ7: 0 | CA7: 0 | CC7: =$W7*G7 -> 0 | CD7: =$W7*H7 -> 0 | CE7: 0 | CF7: 0 | CG7: 0 | CH7: 0 | CI7: 0 | CJ7: 0 | CK7: 0 | CL7: 0
Q8: Total Cost | X8: =SUM(R8:W8) -> 0 | Z8: =$R8*G8 -> 0 | AA8: 0 | AB8: 0 | AC8: 0 | AD8: 0 | AE8: 0 | AF8: 0 | AG8: 0 | AH8: 0 | AI8: 0 | AK8: =$S8*G8 -> 0 | AL8: 0 | AM8: 0 | AN8: 0 | AO8: 0 | AP8: 0 | AQ8: 0 | AR8: 0 | AS8: 0 | AT8: 0 | AV8: =$T8*G8 -> 0 | AW8: 0 | AX8: 0 | AY8: 0 | AZ8: 0 | BA8: 0 | BB8: 0 | BC8: 0 | BD8: 0 | BE8: 0 | BG8: =$U8*G8 -> 0 | BH8: 0 | BI8: 0 | BJ8: 0 | BK8: 0 | BL8: 0 | BM8: 0 | BN8: 0 | BO8: 0 | BP8: 0 | BR8: =$V8*G8 -> 0 | BS8: 0 | BT8: 0 | BU8: 0 | BV8: 0 | BW8: 0 | BX8: 0 | BY8: 0 | BZ8: 0 | CA8: 0 | CC8: =$W8*G8 -> 0 | CD8: 0 | CE8: 0 | CF8: 0 | CG8: 0 | CH8: 0 | CI8: 0 | CJ8: 0 | CK8: 0 | CL8: 0
B9: Total | G9: =SUM(G7:G8) -> 0 | H9: =SUM(H7:H8) -> 0 | I9: 0 | J9: 0 | K9: 0 | L9: 0 | M9: 0 | N9: 0 | O9: 0 | P9: 0 | Q9: =SUM(G9:P9) -> 0 | Z9: =SUM(Z7:Z8) -> 0 | AA9: =SUM(AA7:AA8) -> 0 | AB9: 0 | AC9: 0 | AD9: 0 | AE9: 0 | AF9: 0 | AG9: 0 | AH9: 0 | AI9: 0 | AK9: =SUM(AK7:AK8) -> 0 | AL9: =SUM(AL7:AL8) -> 0 | AM9: 0 | AN9: 0 | AO9: 0 | AP9: 0 | AQ9: 0 | AR9: 0 | AS9: 0 | AT9: 0 | AV9: =SUM(AV7:AV8) -> 0 | AW9: =SUM(AW7:AW8) -> 0 | AX9: 0 | AY9: 0 | AZ9: 0 | BA9: 0 | BB9: 0 | BC9: 0 | BD9: 0 | BE9: 0 | BG9: =SUM(BG7:BG8) -> 0 | BH9: =SUM(BH7:BH8) -> 0 | BI9: 0 | BJ9: 0 | BK9: 0 | BL9: 0 | BM9: 0 | BN9: 0 | BO9: 0 | BP9: 0 | BR9: =SUM(BR7:BR8) -> 0 | BS9: =SUM(BS7:BS8) -> 0 | BT9: 0 | BU9: 0 | BV9: 0 | BW9: 0 | BX9: 0 | BY9: 0 | BZ9: 0 | CA9: 0 | CC9: =SUM(CC7:CC8) -> 0 | CD9: =SUM(CD7:CD8) -> 0 | CE9: 0 | CF9: 0 | CG9: 0 | CH9: 0 | CI9: 0 | CJ9: 0 | CK9: 0 | CL9: 0
D255: Totals

Sheet 2015-16
B1: Project Costs in 2015-16
G4: Total Cost £K | R4: Funding source % | Z4: DNO Compulsory Contribution/Direct Benefits | AK4: Project Partner 1 | AV4: Project Partner 2 | BG4: Project Partner 3 | BR4: DNO Extra Contribution | CC4: Outstanding Funding Required
G5: Labour | H5: Equipment | I5: Contractors | J5: IT | K5: IPR Costs | L5: Travel & Expenses | M5: Payments to users | N5: Contigency | O5: Decommissioning | P5: Other | R5: DNO Compulsory Contribution /Direct Benefits | S5: Project Partner 1 | T5: Project Partner 2 | U5: Project Partner 3 | V5: DNO Extra Contribution | W5: Oustanding Funding Required | X5: Total | Z5: Labour | AA5: Equipment | AB5: Contractors | AC5: IT | AD5: IPR Costs | AE5: Travel & Expenses | AF5: Payments to users | AG5: Contigency | AH5: Decommissioning | AI5: Other | AK5: Labour | AL5: Equipment | AM5: Contractors | AN5: IT | AO5: IPR Costs | AP5: Travel & Expenses | AQ5: Payments to users | AR5: Contigency | AS5: Decommissioning | AT5: Other | AV5: Labour | AW5: Equipment | AX5: Contractors | AY5: IT | AZ5: IPR Costs | BA5: Travel & Expenses | BB5: Payments to users | BC5: Contigency | BD5: Decommissioning | BE5: Other | BG5: Labour | BH5: Equipment | BI5: Contractors | BJ5: IT | BK5: IPR Costs | BL5: Travel & Expenses | BM5: Payments to users | BN5: Contigency | BO5: Decommissioning | BP5: Other | BR5: Labour | BS5: Equipment | BT5: Contractors | BU5: IT | BV5: IPR Costs | BW5: Travel & Expenses | BX5: Payments to users | BY5: Contigency | BZ5: Decommissioning | CA5: Other | CC5: Labour | CD5: Equipment | CE5: Contractors | CF5: IT | CG5: IPR Costs | CH5: Travel & Expenses | CI5: Payments to users | CJ5: Contigency | CK5: Decommissioning | CL5: Other
B6: Description | C6: Task | D6: Project Workstream
X7: =SUM(R7:W7) -> 0 | Z7: =$R7*G7 -> 0 | AA7: =$R7*H7 -> 0 | AB7: 0 | AC7: 0 | AD7: 0 | AE7: 0 | AF7: 0 | AG7: 0 | AH7: 0 | AI7: 0 | AK7: =$S7*G7 -> 0 | AL7: =$S7*H7 -> 0 | AM7: 0 | AN7: 0 | AO7: 0 | AP7: 0 | AQ7: 0 | AR7: 0 | AS7: 0 | AT7: 0 | AV7: =$T7*G7 -> 0 | AW7: =$T7*H7 -> 0 | AX7: 0 | AY7: 0 | AZ7: 0 | BA7: 0 | BB7: 0 | BC7: 0 | BD7: 0 | BE7: 0 | BG7: =$U7*G7 -> 0 | BH7: =$U7*H7 -> 0 | BI7: 0 | BJ7: 0 | BK7: 0 | BL7: 0 | BM7: 0 | BN7: 0 | BO7: 0 | BP7: 0 | BR7: =$V7*G7 -> 0 | BS7: =$V7*H7 -> 0 | BT7: 0 | BU7: 0 | BV7: 0 | BW7: 0 | BX7: 0 | BY7: 0 | BZ7: 0 | CA7: 0 | CC7: =$W7*G7 -> 0 | CD7: =$W7*H7 -> 0 | CE7: 0 | CF7: 0 | CG7: 0 | CH7: 0 | CI7: 0 | CJ7: 0 | CK7: 0 | CL7: 0
Q8: Total Cost | X8: =SUM(R8:W8) -> 0 | Z8: =$R8*G8 -> 0 | AA8: 0 | AB8: 0 | AC8: 0 | AD8: 0 | AE8: 0 | AF8: 0 | AG8: 0 | AH8: 0 | AI8: 0 | AK8: =$S8*G8 -> 0 | AL8: 0 | AM8: 0 | AN8: 0 | AO8: 0 | AP8: 0 | AQ8: 0 | AR8: 0 | AS8: 0 | AT8: 0 | AV8: =$T8*G8 -> 0 | AW8: 0 | AX8: 0 | AY8: 0 | AZ8: 0 | BA8: 0 | BB8: 0 | BC8: 0 | BD8: 0 | BE8: 0 | BG8: =$U8*G8 -> 0 | BH8: 0 | BI8: 0 | BJ8: 0 | BK8: 0 | BL8: 0 | BM8: 0 | BN8: 0 | BO8: 0 | BP8: 0 | BR8: =$V8*G8 -> 0 | BS8: 0 | BT8: 0 | BU8: 0 | BV8: 0 | BW8: 0 | BX8: 0 | BY8: 0 | BZ8: 0 | CA8: 0 | CC8: =$W8*G8 -> 0 | CD8: 0 | CE8: 0 | CF8: 0 | CG8: 0 | CH8: 0 | CI8: 0 | CJ8: 0 | CK8: 0 | CL8: 0
B9: Total | G9: =SUM(G7:G8) -> 0 | H9: =SUM(H7:H8) -> 0 | I9: 0 | J9: 0 | K9: 0 | L9: 0 | M9: 0 | N9: 0 | O9: 0 | P9: 0 | Q9: =SUM(G9:P9) -> 0 | Z9: =SUM(Z7:Z8) -> 0 | AA9: =SUM(AA7:AA8) -> 0 | AB9: 0 | AC9: 0 | AD9: 0 | AE9: 0 | AF9: 0 | AG9: 0 | AH9: 0 | AI9: 0 | AK9: =SUM(AK7:AK8) -> 0 | AL9: =SUM(AL7:AL8) -> 0 | AM9: 0 | AN9: 0 | AO9: 0 | AP9: 0 | AQ9: 0 | AR9: 0 | AS9: 0 | AT9: 0 | AV9: =SUM(AV7:AV8) -> 0 | AW9: =SUM(AW7:AW8) -> 0 | AX9: 0 | AY9: 0 | AZ9: 0 | BA9: 0 | BB9: 0 | BC9: 0 | BD9: 0 | BE9: 0 | BG9: =SUM(BG7:BG8) -> 0 | BH9: =SUM(BH7:BH8) -> 0 | BI9: 0 | BJ9: 0 | BK9: 0 | BL9: 0 | BM9: 0 | BN9: 0 | BO9: 0 | BP9: 0 | BR9: =SUM(BR7:BR8) -> 0 | BS9: =SUM(BS7:BS8) -> 0 | BT9: 0 | BU9: 0 | BV9: 0 | BW9: 0 | BX9: 0 | BY9: 0 | BZ9: 0 | CA9: 0 | CC9: =SUM(CC7:CC8) -> 0 | CD9: =SUM(CD7:CD8) -> 0 | CE9: 0 | CF9: 0 | CG9: 0 | CH9: 0 | CI9: 0 | CJ9: 0 | CK9: 0 | CL9: 0
D255: Totals

Sheet 2016-17
B1: Project Costs in 2016-17
G4: Total Cost £K | R4: Funding source % | Z4: DNO Compulsory Contribution/Direct Benefits | AK4: Project Partner 1 | AV4: Project Partner 2 | BG4: Project Partner 3 | BR4: DNO Extra Contribution | CC4: Outstanding Funding Required
G5: Labour | H5: Equipment | I5: Contractors | J5: IT | K5: IPR Costs | L5: Travel & Expenses | M5: Payments to users | N5: Contigency | O5: Decommissioning | P5: Other | R5: DNO Compulsory Contribution /Direct Benefits | S5: Project Partner 1 | T5: Project Partner 2 | U5: Project Partner 3 | V5: DNO Extra Contribution | W5: Oustanding Funding Required | X5: Total | Z5: Labour | AA5: Equipment | AB5: Contractors | AC5: IT | AD5: IPR Costs | AE5: Travel & Expenses | AF5: Payments to users | AG5: Contigency | AH5: Decommissioning | AI5: Other | AK5: Labour | AL5: Equipment | AM5: Contractors | AN5: IT | AO5: IPR Costs | AP5: Travel & Expenses | AQ5: Payments to users | AR5: Contigency | AS5: Decommissioning | AT5: Other | AV5: Labour | AW5: Equipment | AX5: Contractors | AY5: IT | AZ5: IPR Costs | BA5: Travel & Expenses | BB5: Payments to users | BC5: Contigency | BD5: Decommissioning | BE5: Other | BG5: Labour | BH5: Equipment | BI5: Contractors | BJ5: IT | BK5: IPR Costs | BL5: Travel & Expenses | BM5: Payments to users | BN5: Contigency | BO5: Decommissioning | BP5: Other | BR5: Labour | BS5: Equipment | BT5: Contractors | BU5: IT | BV5: IPR Costs | BW5: Travel & Expenses | BX5: Payments to users | BY5: Contigency | BZ5: Decommissioning | CA5: Other | CC5: Labour | CD5: Equipment | CE5: Contractors | CF5: IT | CG5: IPR Costs | CH5: Travel & Expenses | CI5: Payments to users | CJ5: Contigency | CK5: Decommissioning | CL5: Other
B6: Description | C6: Task | D6: Project Workstream
X7: =SUM(R7:W7) -> 0 | Z7: =$R7*G7 -> 0 | AA7: =$R7*H7 -> 0 | AB7: 0 | AC7: 0 | AD7: 0 | AE7: 0 | AF7: 0 | AG7: 0 | AH7: 0 | AI7: 0 | AK7: =$S7*G7 -> 0 | AL7: =$S7*H7 -> 0 | AM7: 0 | AN7: 0 | AO7: 0 | AP7: 0 | AQ7: 0 | AR7: 0 | AS7: 0 | AT7: 0 | AV7: =$T7*G7 -> 0 | AW7: =$T7*H7 -> 0 | AX7: 0 | AY7: 0 | AZ7: 0 | BA7: 0 | BB7: 0 | BC7: 0 | BD7: 0 | BE7: 0 | BG7: =$U7*G7 -> 0 | BH7: =$U7*H7 -> 0 | BI7: 0 | BJ7: 0 | BK7: 0 | BL7: 0 | BM7: 0 | BN7: 0 | BO7: 0 | BP7: 0 | BR7: =$V7*G7 -> 0 | BS7: =$V7*H7 -> 0 | BT7: 0 | BU7: 0 | BV7: 0 | BW7: 0 | BX7: 0 | BY7: 0 | BZ7: 0 | CA7: 0 | CC7: =$W7*G7 -> 0 | CD7: =$W7*H7 -> 0 | CE7: 0 | CF7: 0 | CG7: 0 | CH7: 0 | CI7: 0 | CJ7: 0 | CK7: 0 | CL7: 0
Q8: Total Cost | X8: =SUM(R8:W8) -> 0 | Z8: =$R8*G8 -> 0 | AA8: 0 | AB8: 0 | AC8: 0 | AD8: 0 | AE8: 0 | AF8: 0 | AG8: 0 | AH8: 0 | AI8: 0 | AK8: =$S8*G8 -> 0 | AL8: 0 | AM8: 0 | AN8: 0 | AO8: 0 | AP8: 0 | AQ8: 0 | AR8: 0 | AS8: 0 | AT8: 0 | AV8: =$T8*G8 -> 0 | AW8: 0 | AX8: 0 | AY8: 0 | AZ8: 0 | BA8: 0 | BB8: 0 | BC8: 0 | BD8: 0 | BE8: 0 | BG8: =$U8*G8 -> 0 | BH8: 0 | BI8: 0 | BJ8: 0 | BK8: 0 | BL8: 0 | BM8: 0 | BN8: 0 | BO8: 0 | BP8: 0 | BR8: =$V8*G8 -> 0 | BS8: 0 | BT8: 0 | BU8: 0 | BV8: 0 | BW8: 0 | BX8: 0 | BY8: 0 | BZ8: 0 | CA8: 0 | CC8: =$W8*G8 -> 0 | CD8: 0 | CE8: 0 | CF8: 0 | CG8: 0 | CH8: 0 | CI8: 0 | CJ8: 0 | CK8: 0 | CL8: 0
B9: Total | G9: =SUM(G7:G8) -> 0 | H9: =SUM(H7:H8) -> 0 | I9: 0 | J9: 0 | K9: 0 | L9: 0 | M9: 0 | N9: 0 | O9: 0 | P9: 0 | Q9: =SUM(G9:P9) -> 0 | Z9: =SUM(Z7:Z8) -> 0 | AA9: =SUM(AA7:AA8) -> 0 | AB9: 0 | AC9: 0 | AD9: 0 | AE9: 0 | AF9: 0 | AG9: 0 | AH9: 0 | AI9: 0 | AK9: =SUM(AK7:AK8) -> 0 | AL9: =SUM(AL7:AL8) -> 0 | AM9: 0 | AN9: 0 | AO9: 0 | AP9: 0 | AQ9: 0 | AR9: 0 | AS9: 0 | AT9: 0 | AV9: =SUM(AV7:AV8) -> 0 | AW9: =SUM(AW7:AW8) -> 0 | AX9: 0 | AY9: 0 | AZ9: 0 | BA9: 0 | BB9: 0 | BC9: 0 | BD9: 0 | BE9: 0 | BG9: =SUM(BG7:BG8) -> 0 | BH9: =SUM(BH7:BH8) -> 0 | BI9: 0 | BJ9: 0 | BK9: 0 | BL9: 0 | BM9: 0 | BN9: 0 | BO9: 0 | BP9: 0 | BR9: =SUM(BR7:BR8) -> 0 | BS9: =SUM(BS7:BS8) -> 0 | BT9: 0 | BU9: 0 | BV9: 0 | BW9: 0 | BX9: 0 | BY9: 0 | BZ9: 0 | CA9: 0 | CC9: =SUM(CC7:CC8) -> 0 | CD9: =SUM(CD7:CD8) -> 0 | CE9: 0 | CF9: 0 | CG9: 0 | CH9: 0 | CI9: 0 | CJ9: 0 | CK9: 0 | CL9: 0
D255: Totals

Sheet 2017-18
B1: Project Costs in 2017-18
G4: Total Cost £K | R4: Funding source % | Z4: DNO Compulsory Contribution/Direct Benefits | AK4: Project Partner 1 | AV4: Project Partner 2 | BG4: Project Partner 3 | BR4: DNO Extra Contribution | CC4: Outstanding Funding Required
G5: Labour | H5: Equipment | I5: Contractors | J5: IT | K5: IPR Costs | L5: Travel & Expenses | M5: Payments to users | N5: Contigency | O5: Decommissioning | P5: Other | R5: DNO Compulsory Contribution /Direct Benefits | S5: Project Partner 1 | T5: Project Partner 2 | U5: Project Partner 3 | V5: DNO Extra Contribution | W5: Oustanding Funding Required | X5: Total | Z5: Labour | AA5: Equipment | AB5: Contractors | AC5: IT | AD5: IPR Costs | AE5: Travel & Expenses | AF5: Payments to users | AG5: Contigency | AH5: Decommissioning | AI5: Other | AK5: Labour | AL5: Equipment | AM5: Contractors | AN5: IT | AO5: IPR Costs | AP5: Travel & Expenses | AQ5: Payments to users | AR5: Contigency | AS5: Decommissioning | AT5: Other | AV5: Labour | AW5: Equipment | AX5: Contractors | AY5: IT | AZ5: IPR Costs | BA5: Travel & Expenses | BB5: Payments to users | BC5: Contigency | BD5: Decommissioning | BE5: Other | BG5: Labour | BH5: Equipment | BI5: Contractors | BJ5: IT | BK5: IPR Costs | BL5: Travel & Expenses | BM5: Payments to users | BN5: Contigency | BO5: Decommissioning | BP5: Other | BR5: Labour | BS5: Equipment | BT5: Contractors | BU5: IT | BV5: IPR Costs | BW5: Travel & Expenses | BX5: Payments to users | BY5: Contigency | BZ5: Decommissioning | CA5: Other | CC5: Labour | CD5: Equipment | CE5: Contractors | CF5: IT | CG5: IPR Costs | CH5: Travel & Expenses | CI5: Payments to users | CJ5: Contigency | CK5: Decommissioning | CL5: Other
B6: Description | C6: Task | D6: Project Workstream
X7: =SUM(R7:W7) -> 0 | Z7: =$R7*G7 -> 0 | AA7: =$R7*H7 -> 0 | AB7: 0 | AC7: 0 | AD7: 0 | AE7: 0 | AF7: 0 | AG7: 0 | AH7: 0 | AI7: 0 | AK7: =$S7*G7 -> 0 | AL7: =$S7*H7 -> 0 | AM7: 0 | AN7: 0 | AO7: 0 | AP7: 0 | AQ7: 0 | AR7: 0 | AS7: 0 | AT7: 0 | AV7: =$T7*G7 -> 0 | AW7: =$T7*H7 -> 0 | AX7: 0 | AY7: 0 | AZ7: 0 | BA7: 0 | BB7: 0 | BC7: 0 | BD7: 0 | BE7: 0 | BG7: =$U7*G7 -> 0 | BH7: =$U7*H7 -> 0 | BI7: 0 | BJ7: 0 | BK7: 0 | BL7: 0 | BM7: 0 | BN7: 0 | BO7: 0 | BP7: 0 | BR7: =$V7*G7 -> 0 | BS7: =$V7*H7 -> 0 | BT7: 0 | BU7: 0 | BV7: 0 | BW7: 0 | BX7: 0 | BY7: 0 | BZ7: 0 | CA7: 0 | CC7: =$W7*G7 -> 0 | CD7: =$W7*H7 -> 0 | CE7: 0 | CF7: 0 | CG7: 0 | CH7: 0 | CI7: 0 | CJ7: 0 | CK7: 0 | CL7: 0
Q8: Total Cost | X8: =SUM(R8:W8) -> 0 | Z8: =$R8*G8 -> 0 | AA8: 0 | AB8: 0 | AC8: 0 | AD8: 0 | AE8: 0 | AF8: 0 | AG8: 0 | AH8: 0 | AI8: 0 | AK8: =$S8*G8 -> 0 | AL8: 0 | AM8: 0 | AN8: 0 | AO8: 0 | AP8: 0 | AQ8: 0 | AR8: 0 | AS8: 0 | AT8: 0 | AV8: =$T8*G8 -> 0 | AW8: 0 | AX8: 0 | AY8: 0 | AZ8: 0 | BA8: 0 | BB8: 0 | BC8: 0 | BD8: 0 | BE8: 0 | BG8: =$U8*G8 -> 0 | BH8: 0 | BI8: 0 | BJ8: 0 | BK8: 0 | BL8: 0 | BM8: 0 | BN8: 0 | BO8: 0 | BP8: 0 | BR8: =$V8*G8 -> 0 | BS8: 0 | BT8: 0 | BU8: 0 | BV8: 0 | BW8: 0 | BX8: 0 | BY8: 0 | BZ8: 0 | CA8: 0 | CC8: =$W8*G8 -> 0 | CD8: 0 | CE8: 0 | CF8: 0 | CG8: 0 | CH8: 0 | CI8: 0 | CJ8: 0 | CK8: 0 | CL8: 0
B9: Total | G9: =SUM(G7:G8) -> 0 | H9: =SUM(H7:H8) -> 0 | I9: 0 | J9: 0 | K9: 0 | L9: 0 | M9: 0 | N9: 0 | O9: 0 | P9: 0 | Q9: =SUM(G9:P9) -> 0 | Z9: =SUM(Z7:Z8) -> 0 | AA9: =SUM(AA7:AA8) -> 0 | AB9: 0 | AC9: 0 | AD9: 0 | AE9: 0 | AF9: 0 | AG9: 0 | AH9: 0 | AI9: 0 | AK9: =SUM(AK7:AK8) -> 0 | AL9: =SUM(AL7:AL8) -> 0 | AM9: 0 | AN9: 0 | AO9: 0 | AP9: 0 | AQ9: 0 | AR9: 0 | AS9: 0 | AT9: 0 | AV9: =SUM(AV7:AV8) -> 0 | AW9: =SUM(AW7:AW8) -> 0 | AX9: 0 | AY9: 0 | AZ9: 0 | BA9: 0 | BB9: 0 | BC9: 0 | BD9: 0 | BE9: 0 | BG9: =SUM(BG7:BG8) -> 0 | BH9: =SUM(BH7:BH8) -> 0 | BI9: 0 | BJ9: 0 | BK9: 0 | BL9: 0 | BM9: 0 | BN9: 0 | BO9: 0 | BP9: 0 | BR9: =SUM(BR7:BR8) -> 0 | BS9: =SUM(BS7:BS8) -> 0 | BT9: 0 | BU9: 0 | BV9: 0 | BW9: 0 | BX9: 0 | BY9: 0 | BZ9: 0 | CA9: 0 | CC9: =SUM(CC7:CC8) -> 0 | CD9: =SUM(CD7:CD8) -> 0 | CE9: 0 | CF9: 0 | CG9: 0 | CH9: 0 | CI9: 0 | CJ9: 0 | CK9: 0 | CL9: 0
D255: Totals

Sheet 2018-19
B1: Project Costs in 2018-19
G4: Total Cost £K | R4: Funding source % | Z4: DNO Compulsory Contribution/Direct Benefits | AK4: Project Partner 1 | AV4: Project Partner 2 | BG4: Project Partner 3 | BR4: DNO Extra Contribution | CC4: Outstanding Funding Required
G5: Labour | H5: Equipment | I5: Contractors | J5: IT | K5: IPR Costs | L5: Travel & Expenses | M5: Payments to users | N5: Contigency | O5: Decommissioning | P5: Other | R5: DNO Compulsory Contribution /Direct Benefits | S5: Project Partner 1 | T5: Project Partner 2 | U5: Project Partner 3 | V5: DNO Extra Contribution | W5: Oustanding Funding Required | X5: Total | Z5: Labour | AA5: Equipment | AB5: Contractors | AC5: IT | AD5: IPR Costs | AE5: Travel & Expenses | AF5: Payments to users | AG5: Contigency | AH5: Decommissioning | AI5: Other | AK5: Labour | AL5: Equipment | AM5: Contractors | AN5: IT | AO5: IPR Costs | AP5: Travel & Expenses | AQ5: Payments to users | AR5: Contigency | AS5: Decommissioning | AT5: Other | AV5: Labour | AW5: Equipment | AX5: Contractors | AY5: IT | AZ5: IPR Costs | BA5: Travel & Expenses | BB5: Payments to users | BC5: Contigency | BD5: Decommissioning | BE5: Other | BG5: Labour | BH5: Equipment | BI5: Contractors | BJ5: IT | BK5: IPR Costs | BL5: Travel & Expenses | BM5: Payments to users | BN5: Contigency | BO5: Decommissioning | BP5: Other | BR5: Labour | BS5: Equipment | BT5: Contractors | BU5: IT | BV5: IPR Costs | BW5: Travel & Expenses | BX5: Payments to users | BY5: Contigency | BZ5: Decommissioning | CA5: Other | CC5: Labour | CD5: Equipment | CE5: Contractors | CF5: IT | CG5: IPR Costs | CH5: Travel & Expenses | CI5: Payments to users | CJ5: Contigency | CK5: Decommissioning | CL5: Other
B6: Description | C6: Task | D6: Project Workstream
X7: =SUM(R7:W7) -> 0 | Z7: =$R7*G7 -> 0 | AA7: =$R7*H7 -> 0 | AB7: 0 | AC7: 0 | AD7: 0 | AE7: 0 | AF7: 0 | AG7: 0 | AH7: 0 | AI7: 0 | AK7: =$S7*G7 -> 0 | AL7: =$S7*H7 -> 0 | AM7: 0 | AN7: 0 | AO7: 0 | AP7: 0 | AQ7: 0 | AR7: 0 | AS7: 0 | AT7: 0 | AV7: =$T7*G7 -> 0 | AW7: =$T7*H7 -> 0 | AX7: 0 | AY7: 0 | AZ7: 0 | BA7: 0 | BB7: 0 | BC7: 0 | BD7: 0 | BE7: 0 | BG7: =$U7*G7 -> 0 | BH7: =$U7*H7 -> 0 | BI7: 0 | BJ7: 0 | BK7: 0 | BL7: 0 | BM7: 0 | BN7: 0 | BO7: 0 | BP7: 0 | BR7: =$V7*G7 -> 0 | BS7: =$V7*H7 -> 0 | BT7: 0 | BU7: 0 | BV7: 0 | BW7: 0 | BX7: 0 | BY7: 0 | BZ7: 0 | CA7: 0 | CC7: =$W7*G7 -> 0 | CD7: =$W7*H7 -> 0 | CE7: 0 | CF7: 0 | CG7: 0 | CH7: 0 | CI7: 0 | CJ7: 0 | CK7: 0 | CL7: 0
Q8: Total Cost | X8: =SUM(R8:W8) -> 0 | Z8: =$R8*G8 -> 0 | AA8: 0 | AB8: 0 | AC8: 0 | AD8: 0 | AE8: 0 | AF8: 0 | AG8: 0 | AH8: 0 | AI8: 0 | AK8: =$S8*G8 -> 0 | AL8: 0 | AM8: 0 | AN8: 0 | AO8: 0 | AP8: 0 | AQ8: 0 | AR8: 0 | AS8: 0 | AT8: 0 | AV8: =$T8*G8 -> 0 | AW8: 0 | AX8: 0 | AY8: 0 | AZ8: 0 | BA8: 0 | BB8: 0 | BC8: 0 | BD8: 0 | BE8: 0 | BG8: =$U8*G8 -> 0 | BH8: 0 | BI8: 0 | BJ8: 0 | BK8: 0 | BL8: 0 | BM8: 0 | BN8: 0 | BO8: 0 | BP8: 0 | BR8: =$V8*G8 -> 0 | BS8: 0 | BT8: 0 | BU8: 0 | BV8: 0 | BW8: 0 | BX8: 0 | BY8: 0 | BZ8: 0 | CA8: 0 | CC8: =$W8*G8 -> 0 | CD8: 0 | CE8: 0 | CF8: 0 | CG8: 0 | CH8: 0 | CI8: 0 | CJ8: 0 | CK8: 0 | CL8: 0
B9: Total | G9: =SUM(G7:G8) -> 0 | H9: =SUM(H7:H8) -> 0 | I9: 0 | J9: 0 | K9: 0 | L9: 0 | M9: 0 | N9: 0 | O9: 0 | P9: 0 | Q9: =SUM(G9:P9) -> 0 | Z9: =SUM(Z7:Z8) -> 0 | AA9: =SUM(AA7:AA8) -> 0 | AB9: 0 | AC9: 0 | AD9: 0 | AE9: 0 | AF9: 0 | AG9: 0 | AH9: 0 | AI9: 0 | AK9: =SUM(AK7:AK8) -> 0 | AL9: =SUM(AL7:AL8) -> 0 | AM9: 0 | AN9: 0 | AO9: 0 | AP9: 0 | AQ9: 0 | AR9: 0 | AS9: 0 | AT9: 0 | AV9: =SUM(AV7:AV8) -> 0 | AW9: =SUM(AW7:AW8) -> 0 | AX9: 0 | AY9: 0 | AZ9: 0 | BA9: 0 | BB9: 0 | BC9: 0 | BD9: 0 | BE9: 0 | BG9: =SUM(BG7:BG8) -> 0 | BH9: =SUM(BH7:BH8) -> 0 | BI9: 0 | BJ9: 0 | BK9: 0 | BL9: 0 | BM9: 0 | BN9: 0 | BO9: 0 | BP9: 0 | BR9: =SUM(BR7:BR8) -> 0 | BS9: =SUM(BS7:BS8) -> 0 | BT9: 0 | BU9: 0 | BV9: 0 | BW9: 0 | BX9: 0 | BY9: 0 | BZ9: 0 | CA9: 0 | CC9: =SUM(CC7:CC8) -> 0 | CD9: =SUM(CD7:CD8) -> 0 | CE9: 0 | CF9: 0 | CG9: 0 | CH9: 0 | CI9: 0 | CJ9: 0 | CK9: 0 | CL9: 0
D255: Totals

Sheet 2019-20
B1: Project Costs in 2019-20
G4: Total Cost £K | R4: Funding source % | Z4: DNO Compulsory Contribution/Direct Benefits | AK4: Project Partner 1 | AV4: Project Partner 2 | BG4: Project Partner 3 | BR4: DNO Extra Contribution | CC4: Outstanding Funding Required
G5: Labour | H5: Equipment | I5: Contractors | J5: IT | K5: IPR Costs | L5: Travel & Expenses | M5: Payments to users | N5: Contigency | O5: Decommissioning | P5: Other | R5: DNO Compulsory Contribution /Direct Benefits | S5: Project Partner 1 | T5: Project Partner 2 | U5: Project Partner 3 | V5: DNO Extra Contribution | W5: Oustanding Funding Required | X5: Total | Z5: Labour | AA5: Equipment | AB5: Contractors | AC5: IT | AD5: IPR Costs | AE5: Travel & Expenses | AF5: Payments to users | AG5: Contigency | AH5: Decommissioning | AI5: Other | AK5: Labour | AL5: Equipment | AM5: Contractors | AN5: IT | AO5: IPR Costs | AP5: Travel & Expenses | AQ5: Payments to users | AR5: Contigency | AS5: Decommissioning | AT5: Other | AV5: Labour | AW5: Equipment | AX5: Contractors | AY5: IT | AZ5: IPR Costs | BA5: Travel & Expenses | BB5: Payments to users | BC5: Contigency | BD5: Decommissioning | BE5: Other | BG5: Labour | BH5: Equipment | BI5: Contractors | BJ5: IT | BK5: IPR Costs | BL5: Travel & Expenses | BM5: Payments to users | BN5: Contigency | BO5: Decommissioning | BP5: Other | BR5: Labour | BS5: Equipment | BT5: Contractors | BU5: IT | BV5: IPR Costs | BW5: Travel & Expenses | BX5: Payments to users | BY5: Contigency | BZ5: Decommissioning | CA5: Other | CC5: Labour | CD5: Equipment | CE5: Contractors | CF5: IT | CG5: IPR Costs | CH5: Travel & Expenses | CI5: Payments to users | CJ5: Contigency | CK5: Decommissioning | CL5: Other
B6: Description | C6: Task | D6: Project Workstream
X7: =SUM(R7:W7) -> 0 | Z7: =$R7*G7 -> 0 | AA7: =$R7*H7 -> 0 | AB7: 0 | AC7: 0 | AD7: 0 | AE7: 0 | AF7: 0 | AG7: 0 | AH7: 0 | AI7: 0 | AK7: =$S7*G7 -> 0 | AL7: =$S7*H7 -> 0 | AM7: 0 | AN7: 0 | AO7: 0 | AP7: 0 | AQ7: 0 | AR7: 0 | AS7: 0 | AT7: 0 | AV7: =$T7*G7 -> 0 | AW7: =$T7*H7 -> 0 | AX7: 0 | AY7: 0 | AZ7: 0 | BA7: 0 | BB7: 0 | BC7: 0 | BD7: 0 | BE7: 0 | BG7: =$U7*G7 -> 0 | BH7: =$U7*H7 -> 0 | BI7: 0 | BJ7: 0 | BK7: 0 | BL7: 0 | BM7: 0 | BN7: 0 | BO7: 0 | BP7: 0 | BR7: =$V7*G7 -> 0 | BS7: =$V7*H7 -> 0 | BT7: 0 | BU7: 0 | BV7: 0 | BW7: 0 | BX7: 0 | BY7: 0 | BZ7: 0 | CA7: 0 | CC7: =$W7*G7 -> 0 | CD7: =$W7*H7 -> 0 | CE7: 0 | CF7: 0 | CG7: 0 | CH7: 0 | CI7: 0 | CJ7: 0 | CK7: 0 | CL7: 0
Q8: Total Cost | X8: =SUM(R8:W8) -> 0 | Z8: =$R8*G8 -> 0 | AA8: 0 | AB8: 0 | AC8: 0 | AD8: 0 | AE8: 0 | AF8: 0 | AG8: 0 | AH8: 0 | AI8: 0 | AK8: =$S8*G8 -> 0 | AL8: 0 | AM8: 0 | AN8: 0 | AO8: 0 | AP8: 0 | AQ8: 0 | AR8: 0 | AS8: 0 | AT8: 0 | AV8: =$T8*G8 -> 0 | AW8: 0 | AX8: 0 | AY8: 0 | AZ8: 0 | BA8: 0 | BB8: 0 | BC8: 0 | BD8: 0 | BE8: 0 | BG8: =$U8*G8 -> 0 | BH8: 0 | BI8: 0 | BJ8: 0 | BK8: 0 | BL8: 0 | BM8: 0 | BN8: 0 | BO8: 0 | BP8: 0 | BR8: =$V8*G8 -> 0 | BS8: 0 | BT8: 0 | BU8: 0 | BV8: 0 | BW8: 0 | BX8: 0 | BY8: 0 | BZ8: 0 | CA8: 0 | CC8: =$W8*G8 -> 0 | CD8: 0 | CE8: 0 | CF8: 0 | CG8: 0 | CH8: 0 | CI8: 0 | CJ8: 0 | CK8: 0 | CL8: 0
B9: Total | G9: =SUM(G7:G8) -> 0 | H9: =SUM(H7:H8) -> 0 | I9: 0 | J9: 0 | K9: 0 | L9: 0 | M9: 0 | N9: 0 | O9: 0 | P9: 0 | Q9: =SUM(G9:P9) -> 0 | Z9: =SUM(Z7:Z8) -> 0 | AA9: =SUM(AA7:AA8) -> 0 | AB9: 0 | AC9: 0 | AD9: 0 | AE9: 0 | AF9: 0 | AG9: 0 | AH9: 0 | AI9: 0 | AK9: =SUM(AK7:AK8) -> 0 | AL9: =SUM(AL7:AL8) -> 0 | AM9: 0 | AN9: 0 | AO9: 0 | AP9: 0 | AQ9: 0 | AR9: 0 | AS9: 0 | AT9: 0 | AV9: =SUM(AV7:AV8) -> 0 | AW9: =SUM(AW7:AW8) -> 0 | AX9: 0 | AY9: 0 | AZ9: 0 | BA9: 0 | BB9: 0 | BC9: 0 | BD9: 0 | BE9: 0 | BG9: =SUM(BG7:BG8) -> 0 | BH9: =SUM(BH7:BH8) -> 0 | BI9: 0 | BJ9: 0 | BK9: 0 | BL9: 0 | BM9: 0 | BN9: 0 | BO9: 0 | BP9: 0 | BR9: =SUM(BR7:BR8) -> 0 | BS9: =SUM(BS7:BS8) -> 0 | BT9: 0 | BU9: 0 | BV9: 0 | BW9: 0 | BX9: 0 | BY9: 0 | BZ9: 0 | CA9: 0 | CC9: =SUM(CC7:CC8) -> 0 | CD9: =SUM(CD7:CD8) -> 0 | CE9: 0 | CF9: 0 | CG9: 0 | CH9: 0 | CI9: 0 | CJ9: 0 | CK9: 0 | CL9: 0
D255: Totals

Sheet Whole project
B1: Project Costs in Whole Project
G4: Total Cost £K | R4: Funding source % | Z4: DNO Compulsory Contribution/Direct Benefits | AK4: Project Partner 1 | AV4: Project Partner 2 | BG4: Project Partner 3 | BR4: DNO Extra Contribution | CC4: Outstanding Funding Required
G5: Labour | H5: Equipment | I5: Contractors | J5: IT | K5: IPR Costs | L5: Travel & Expenses | M5: Payments to users | N5: Contigency | O5: Decommissioning | P5: Other | R5: DNO Compulsory Contribution /Direct Benefits | S5: Project Partner 1 | T5: Project Partner 2 | U5: Project Partner 3 | V5: DNO Extra Contribution | W5: Oustanding Funding Required | X5: Total | Z5: Labour | AA5: Equipment | AB5: Contractors | AC5: IT | AD5: IPR Costs | AE5: Travel & Expenses | AF5: Payments to users | AG5: Contigency | AH5: Decommissioning | AI5: Other | AK5: Labour | AL5: Equipment | AM5: Contractors | AN5: IT | AO5: IPR Costs | AP5: Travel & Expenses | AQ5: Payments to users | AR5: Contigency | AS5: Decommissioning | AT5: Other | AV5: Labour | AW5: Equipment | AX5: Contractors | AY5: IT | AZ5: IPR Costs | BA5: Travel & Expenses | BB5: Payments to users | BC5: Contigency | BD5: Decommissioning | BE5: Other | BG5: Labour | BH5: Equipment | BI5: Contractors | BJ5: IT | BK5: IPR Costs | BL5: Travel & Expenses | BM5: Payments to users | BN5: Contigency | BO5: Decommissioning | BP5: Other | BR5: Labour | BS5: Equipment | BT5: Contractors | BU5: IT | BV5: IPR Costs | BW5: Travel & Expenses | BX5: Payments to users | BY5: Contigency | BZ5: Decommissioning | CA5: Other | CC5: Labour | CD5: Equipment | CE5: Contractors | CF5: IT | CG5: IPR Costs | CH5: Travel & Expenses | CI5: Payments to users | CJ5: Contigency | CK5: Decommissioning | CL5: Other
B6: Description | C6: Task | D6: Project Workstream
G7: ='2014-15'!G7+'2015-16'!G7+'2016-17'!G7+'2017-18'!G7+'2018-19'!G7+'2019-20'!G7 -> 0 | H7: ='2014-15'!H7+'2015-16'!H7+'2016-17'!H7+'2017-18'!H7+'2018-19'!H7+'2019-20'!H7 -> 0 | I7: ='2014-15'!I7+'2015-16'!I7+'2016-17'!I7+'2017-18'!I7+'2018-19'!I7+'2019-20'!I7 -> 0 | J7: ='2014-15'!J7+'2015-16'!J7+'2016-17'!J7+'2017-18'!J7+'2018-19'!J7+'2019-20'!J7 -> 0 | K7: ='2014-15'!K7+'2015-16'!K7+'2016-17'!K7+'2017-18'!K7+'2018-19'!K7+'2019-20'!K7 -> 0 | L7: ='2014-15'!L7+'2015-16'!L7+'2016-17'!L7+'2017-18'!L7+'2018-19'!L7+'2019-20'!L7 -> 0 | M7: ='2014-15'!M7+'2015-16'!M7+'2016-17'!M7+'2017-18'!M7+'2018-19'!M7+'2019-20'!M7 -> 0 | N7: ='2014-15'!N7+'2015-16'!N7+'2016-17'!N7+'2017-18'!N7+'2018-19'!N7+'2019-20'!N7 -> 0 | O7: ='2014-15'!O7+'2015-16'!O7+'2016-17'!O7+'2017-18'!O7+'2018-19'!O7+'2019-20'!O7 -> 0 | P7: ='2014-15'!P7+'2015-16'!P7+'2016-17'!P7+'2017-18'!P7+'2018-19'!P7+'2019-20'!P7 -> 0 | X7: =SUM(R7:W7) -> 0 | Z7: =$R7*G7 -> 0 | AA7: =$R7*H7 -> 0 | AB7: 0 | AC7: 0 | AD7: 0 | AE7: 0 | AF7: 0 | AG7: 0 | AH7: 0 | AI7: 0 | AK7: =$S7*G7 -> 0 | AL7: =$S7*H7 -> 0 | AM7: 0 | AN7: 0 | AO7: 0 | AP7: 0 | AQ7: 0 | AR7: 0 | AS7: 0 | AT7: 0 | AV7: =$T7*G7 -> 0 | AW7: =$T7*H7 -> 0 | AX7: 0 | AY7: 0 | AZ7: 0 | BA7: 0 | BB7: 0 | BC7: 0 | BD7: 0 | BE7: 0 | BG7: =$U7*G7 -> 0 | BH7: =$U7*H7 -> 0 | BI7: 0 | BJ7: 0 | BK7: 0 | BL7: 0 | BM7: 0 | BN7: 0 | BO7: 0 | BP7: 0 | BR7: =$V7*G7 -> 0 | BS7: =$V7*H7 -> 0 | BT7: 0 | BU7: 0 | BV7: 0 | BW7: 0 | BX7: 0 | BY7: 0 | BZ7: 0 | CA7: 0 | CC7: =$W7*G7 -> 0 | CD7: =$W7*H7 -> 0 | CE7: 0 | CF7: 0 | CG7: 0 | CH7: 0 | CI7: 0 | CJ7: 0 | CK7: 0 | CL7: 0
G8: ='2014-15'!G8+'2015-16'!G8+'2016-17'!G8+'2017-18'!G8+'2018-19'!G8+'2019-20'!G8 -> 0 | H8: ='2014-15'!H8+'2015-16'!H8+'2016-17'!H8+'2017-18'!H8+'2018-19'!H8+'2019-20'!H8 -> 0 | I8: ='2014-15'!I8+'2015-16'!I8+'2016-17'!I8+'2017-18'!I8+'2018-19'!I8+'2019-20'!I8 -> 0 | J8: ='2014-15'!J8+'2015-16'!J8+'2016-17'!J8+'2017-18'!J8+'2018-19'!J8+'2019-20'!J8 -> 0 | K8: ='2014-15'!K8+'2015-16'!K8+'2016-17'!K8+'2017-18'!K8+'2018-19'!K8+'2019-20'!K8 -> 0 | L8: ='2014-15'!L8+'2015-16'!L8+'2016-17'!L8+'2017-18'!L8+'2018-19'!L8+'2019-20'!L8 -> 0 | M8: ='2014-15'!M8+'2015-16'!M8+'2016-17'!M8+'2017-18'!M8+'2018-19'!M8+'2019-20'!M8 -> 0 | N8: ='2014-15'!N8+'2015-16'!N8+'2016-17'!N8+'2017-18'!N8+'2018-19'!N8+'2019-20'!N8 -> 0 | O8: ='2014-15'!O8+'2015-16'!O8+'2016-17'!O8+'2017-18'!O8+'2018-19'!O8+'2019-20'!O8 -> 0 | P8: ='2014-15'!P8+'2015-16'!P8+'2016-17'!P8+'2017-18'!P8+'2018-19'!P8+'2019-20'!P8 -> 0 | Q8: Total Cost | X8: =SUM(R8:W8) -> 0 | Z8: =$R8*G8 -> 0 | AA8: 0 | AB8: 0 | AC8: 0 | AD8: 0 | AE8: 0 | AF8: 0 | AG8: 0 | AH8: 0 | AI8: 0 | AK8: =$S8*G8 -> 0 | AL8: 0 | AM8: 0 | AN8: 0 | AO8: 0 | AP8: 0 | AQ8: 0 | AR8: 0 | AS8: 0 | AT8: 0 | AV8: =$T8*G8 -> 0 | AW8: 0 | AX8: 0 | AY8: 0 | AZ8: 0 | BA8: 0 | BB8: 0 | BC8: 0 | BD8: 0 | BE8: 0 | BG8: =$U8*G8 -> 0 | BH8: 0 | BI8: 0 | BJ8: 0 | BK8: 0 | BL8: 0 | BM8: 0 | BN8: 0 | BO8: 0 | BP8: 0 | BR8: =$V8*G8 -> 0 | BS8: 0 | BT8: 0 | BU8: 0 | BV8: 0 | BW8: 0 | BX8: 0 | BY8: 0 | BZ8: 0 | CA8: 0 | CC8: =$W8*G8 -> 0 | CD8: 0 | CE8: 0 | CF8: 0 | CG8: 0 | CH8: 0 | CI8: 0 | CJ8: 0 | CK8: 0 | CL8: 0
B9: Total | G9: =SUM(G7:G8) -> 0 | H9: =SUM(H7:H8) -> 0 | I9: 0 | J9: 0 | K9: 0 | L9: 0 | M9: 0 | N9: 0 | O9: 0 | P9: 0 | Q9: =SUM(G9:P9) -> 0 | Z9: =SUM(Z7:Z8) -> 0 | AA9: =SUM(AA7:AA8) -> 0 | AB9: 0 | AC9: 0 | AD9: 0 | AE9: 0 | AF9: 0 | AG9: 0 | AH9: 0 | AI9: 0 | AK9: =SUM(AK7:AK8) -> 0 | AL9: =SUM(AL7:AL8) -> 0 | AM9: 0 | AN9: 0 | AO9: 0 | AP9: 0 | AQ9: 0 | AR9: 0 | AS9: 0 | AT9: 0 | AV9: =SUM(AV7:AV8) -> 0 | AW9: =SUM(AW7:AW8) -> 0 | AX9: 0 | AY9: 0 | AZ9: 0 | BA9: 0 | BB9: 0 | BC9: 0 | BD9: 0 | BE9: 0 | BG9: =SUM(BG7:BG8) -> 0 | BH9: =SUM(BH7:BH8) -> 0 | BI9: 0 | BJ9: 0 | BK9: 0 | BL9: 0 | BM9: 0 | BN9: 0 | BO9: 0 | BP9: 0 | BR9: =SUM(BR7:BR8) -> 0 | BS9: =SUM(BS7:BS8) -> 0 | BT9: 0 | BU9: 0 | BV9: 0 | BW9: 0 | BX9: 0 | BY9: 0 | BZ9: 0 | CA9: 0 | CC9: =SUM(CC7:CC8) -> 0 | CD9: =SUM(CD7:CD8) -> 0 | CE9: 0 | CF9: 0 | CG9: 0 | CH9: 0 | CI9: 0 | CJ9: 0 | CK9: 0 | CL9: 0
D255: Totals

Sheet Project Direction
C4: Cost Category | D4: Cost
C5: Labour
D6: ='Whole project'!CC9 -> 0
C7: Equipment
D8: ='Whole project'!CD9 -> 0
C9: Contractors
D10: ='Whole project'!CE9 -> 0
C11: IT
D12: ='Whole project'!CF9 -> 0
C13: IPR Costs
D14: ='Whole project'!CG9 -> 0
C15: Travel & Expenses
D16: ='Whole project'!CH9 -> 0
C17: Payments to users
D18: ='Whole project'!CI9 -> 0
C19: Contigency
D20: ='Whole project'!CJ9 -> 0
C21: Decommissioning
D22: ='Whole project'!CK9 -> 0
C23: Other
D24: ='Whole project'!CL9 -> 0 | E24: Check that = to Total Outstanding Funding Required
C25: Total | D25: =SUM(D6:D24) -> 0 | E25: =IF(D25='Second Tier Funding Request'!I79,"OK", "ERROR") -> OK

Sheet Net benefits
B2: Net Benefits
B4: DNOs can provide notes alongside costing in order to aid understanding of why these costs are required. This should be supplemented by a fuller qualitative account of the Base Case method and Method in the appendices.
B6: Method 1 -
A8: (a) | B8: Base Case costs
B9: Description of cost | C9: Cost (£)
B12: Total | C12: =SUM(C10:C11) -> 0
A14: (b) | B14: Method costs
B15: Description of cost | C15: Cost (£)
B18: Total | C18: =SUM(C16:C17) -> 0
B20: Net financial benefit | C20: =C12-C18 -> 0
A22: (c) | B22: Capacity released (kW)
A24: (d) | B24: Base Case time (months)
A26: (e) | B26: Method time (months)
A29: (f) | B29: Year | C29: 2015 | D29: 2016 | E29: 2017 | F29: 2018 | G29: 2019 | H29: 2020 | I29: 2021 | J29: 2022 | K29: 2023 | L29: 2024 | M29: 2025 | N29: 2026 | O29: 2027 | P29: 2028 | Q29: 2029 | R29: 2030 | S29: 2031 | T29: 2032 | U29: 2033 | V29: 2034 | W29: 2035 | X29: 2036 | Y29: 2037 | Z29: 2038 | AA29: 2039 | AB29: 2040
B30: Total sites where method replicated
B33: Method 2 -
A35: (a) | B35: Capacity released (kW)
A37: (b) | B37: Base Case time (months)
A39: (c) | B39: Method time (months)
A41: (d) | B41: Base Case costs
B42: Description of cost | C42: Cost (£)
B45: Total | C45: =SUM(C43:C44) -> 0
A47: (e) | B47: Method costs
B48: Description of cost | C48: Cost (£)
B51: Total | C51: =SUM(C49:C50) -> 0
B53: Net financial benefit | C53: =C45-C51 -> 0
A55: (f) | B55: Year | C55: 2015 | D55: 2016 | E55: 2017 | F55: 2018 | G55: 2019 | H55: 2020 | I55: 2021 | J55: 2022 | K55: 2023 | L55: 2024 | M55: 2025 | N55: 2026 | O55: 2027 | P55: 2028 | Q55: 2029 | R55: 2030 | S55: 2031 | T55: 2032 | U55: 2033 | V55: 2034 | W55: 2035 | X55: 2036 | Y55: 2037 | Z55: 2038 | AA55: 2039 | AB55: 2040
B56: Total sites where method replicated
